NUMERO_MANDATO;RIGA_MANDATO;QUIET;IMPORTO_RIGA;IMPORTO_MANDATO;BENEFICIARIO;CIG;TITOLO_PAGAMENTO;DATA_MANDATO;CAPITOLO;ARTICOLO;NUMERO_IMPEGNO;TITOLO;DESCR_TITOLO;LIVELLO_II;DESCR_LIVELLO_II;LIVELLO_III;DESCR_LIVELLO_III;LIVELLO_IV;DESCR_LIVELLO_IV;LIVELLO_V;DESCR_LIVELLO_V;DATA_PAG_EFF
2;1;0;147,5;147,5;S.E.A. di Nicola Orru' & C. s.a.s.;Z7B1F20421;SALDO Fatt.n. 32/02  del 29/12/2017 Revisione estintori dicembre 2017;18/01/2018;1302;0;212;1;Spese correnti;3;Acquisto di beni e servizi;2;Acquisto di servizi;9;Manutenzione ordinaria e riparazioni;5;Manutenzione ordinaria e riparazioni di attrezzature;18/01/2018
3;1;0;7.684,60;16.013,58;S.E.S.A. SPA;Z11182D6F2;SALDO Fatt.n. 2001089  del 30/11/2017;18/01/2018;5780;0;74;1;Spese correnti;3;Acquisto di beni e servizi;2;Acquisto di servizi;15;Contratti di servizio pubblico;4;Contratti di servizio per la raccolta rifiuti;18/01/2018
3;2;0;8.328,98;16.013,58;S.E.S.A. SPA;Z11182D6F2;SALDO Fatt.n. 2001165  del 31/12/2017;18/01/2018;5780;0;74;1;Spese correnti;3;Acquisto di beni e servizi;2;Acquisto di servizi;15;Contratti di servizio pubblico;4;Contratti di servizio per la raccolta rifiuti;18/01/2018
4;1;0;173,61;173,61;ENERGON FACILITY SOLUTIONS S.p.A.;Z0C2048D18;ACCONTO Fatt.n. 698/VPA  del 31/12/2017 Servizio di conduzione e gestione impianti termici immobili comunali periodo dal 14.10.2017 al 31.12.2017;18/01/2018;1400;0;319;1;Spese correnti;3;Acquisto di beni e servizi;2;Acquisto di servizi;9;Manutenzione ordinaria e riparazioni;8;Manutenzione ordinaria e riparazioni di beni immobili;18/01/2018
5;1;0;140,8;140,8;ENERGON FACILITY SOLUTIONS S.p.A.;Z0C2048D18;ACCONTO Fatt.n. 698/VPA  del 31/12/2017 Servizio di conduzione e gestione impianti termici immobili comunali periodo dal 14.10.2017 al 31.12.2017;18/01/2018;1310;0;318;1;Spese correnti;3;Acquisto di beni e servizi;2;Acquisto di servizi;9;Manutenzione ordinaria e riparazioni;8;Manutenzione ordinaria e riparazioni di beni immobili;18/01/2018
6;1;0;80,53;80,53;ENERGON FACILITY SOLUTIONS S.p.A.;Z0C2048D18;ACCONTO Fatt.n. 698/VPA  del 31/12/2017 Servizio di conduzione e gestione impianti termici immobili comunali periodo dal 14.10.2017 al 31.12.2017;18/01/2018;2810;0;317;1;Spese correnti;3;Acquisto di beni e servizi;2;Acquisto di servizi;99;Altri servizi;999;Altri servizi diversi n.a.c.;18/01/2018
7;1;0;361,28;361,28;ENERGON FACILITY SOLUTIONS S.p.A.;Z0C2048D18;ACCONTO Fatt.n. 698/VPA  del 31/12/2017 Servizio di conduzione e gestione impianti termici immobili comunali periodo dal 14.10.2017 al 31.12.2017;18/01/2018;476;0;316;1;Spese correnti;3;Acquisto di beni e servizi;2;Acquisto di servizi;9;Manutenzione ordinaria e riparazioni;8;Manutenzione ordinaria e riparazioni di beni immobili;18/01/2018
8;1;0;200,83;200,83;ENERGON FACILITY SOLUTIONS S.p.A.;Z0C2048D18;ACCONTO Fatt.n. 698/VPA  del 31/12/2017 Servizio di conduzione e gestione impianti termici immobili comunali periodo dal 14.10.2017 al 31.12.2017;18/01/2018;2975;0;315;1;Spese correnti;3;Acquisto di beni e servizi;2;Acquisto di servizi;99;Altri servizi;999;Altri servizi diversi n.a.c.;18/01/2018
9;1;0;400,2;400,2;ENERGON FACILITY SOLUTIONS S.p.A.;Z0C2048D18;SALDO Fatt.n. 698/VPA  del 31/12/2017 Servizio di conduzione e gestione impianti termici immobili comunali periodo dal 14.10.2017 al 31.12.2017;18/01/2018;3185;0;314;1;Spese correnti;3;Acquisto di beni e servizi;2;Acquisto di servizi;99;Altri servizi;999;Altri servizi diversi n.a.c.;18/01/2018
10;1;0;1.220,52;1.220,52;BOGONI s.r.l.;Z9B215A731;SALDO Fatt.n. PA00005  del 27/12/2017 Fornitura gasolio impianti sportivi;18/01/2018;6498;0;407;1;Spese correnti;3;Acquisto di beni e servizi;1;Acquisto di beni;2;Altri beni di consumo;999;Altri beni e materiali di consumo n.a.c.;18/01/2018
11;1;0;248;595;BOGONI ALFONSO & C. S.A.S.;Z9E1D16A02;SALDO Fatt.n. V0000011FE  del 31/12/2017 Fornitura carburante per automezzi comunali mese di dicembre 2017;18/01/2018;570;0;86;1;Spese correnti;3;Acquisto di beni e servizi;1;Acquisto di beni;2;Altri beni di consumo;2;Carburanti, combustibili e lubrificanti;18/01/2018
11;2;0;347;595;BOGONI ALFONSO & C. S.A.S.;Z9E1D16A02;SALDO Fatt.n. V0000010FE  del 30/11/2017 Fornitura carburanti per automezzi comunali mese di novembre 2017;18/01/2018;570;0;86;1;Spese correnti;3;Acquisto di beni e servizi;1;Acquisto di beni;2;Altri beni di consumo;2;Carburanti, combustibili e lubrificanti;18/01/2018
12;1;0;574,75;574,75;MAGAZZINI AMBROSI S.A.S. DI AMBROSI FABIO E TIZIANA;ZC91E16A3B;SALDO Fatt.n. 21  del 29/12/2017 Fornitura materiale da ferramenta per operai;18/01/2018;1300;0;385;1;Spese correnti;3;Acquisto di beni e servizi;1;Acquisto di beni;2;Altri beni di consumo;999;Altri beni e materiali di consumo n.a.c.;18/01/2018
13;1;0;1.045,00;1.045,00;ZEFIRO SRL;Z3D1A45638;ACCONTO Fatt.n. 54/PA  del 31/12/2017 Servizio di pulizia edifici comunali MESE di DICEMBRE 2017;18/01/2018;475;0;393;1;Spese correnti;3;Acquisto di beni e servizi;2;Acquisto di servizi;99;Altri servizi;999;Altri servizi diversi n.a.c.;18/01/2018
14;1;0;262,18;262,18;ZEFIRO SRL;Z3D1A45638;ACCONTO Fatt.n. 54/PA  del 31/12/2017 Servizio di pulizia edifici comunali MESE di DICEMBRE 2017;18/01/2018;2973;0;394;1;Spese correnti;3;Acquisto di beni e servizi;2;Acquisto di servizi;99;Altri servizi;999;Altri servizi diversi n.a.c.;18/01/2018
15;1;0;294,75;294,75;ZEFIRO SRL;Z3D1A45638;ACCONTO Fatt.n. 54/PA  del 31/12/2017 Servizio di pulizia edifici comunali MESE di DICEMBRE 2017;18/01/2018;37601;0;395;1;Spese correnti;3;Acquisto di beni e servizi;2;Acquisto di servizi;99;Altri servizi;999;Altri servizi diversi n.a.c.;18/01/2018
16;1;0;174,85;174,85;ZEFIRO SRL;Z3D1A45638;SALDO Fatt.n. 54/PA  del 31/12/2017 Servizio di pulizia edifici comunali MESE di DICEMBRE 2017;18/01/2018;1400;0;396;1;Spese correnti;3;Acquisto di beni e servizi;2;Acquisto di servizi;9;Manutenzione ordinaria e riparazioni;8;Manutenzione ordinaria e riparazioni di beni immobili;18/01/2018
17;1;0;13.323,83;13.323,83;DE VIZIA TRANSFER S.P.A.;6848933E4B;SALDO Fatt.n. V3-31841  del 31/12/2017 Servizio di raccolta RSU mese di dicembre 2017;18/01/2018;5780;0;18;1;Spese correnti;3;Acquisto di beni e servizi;2;Acquisto di servizi;15;Contratti di servizio pubblico;4;Contratti di servizio per la raccolta rifiuti;18/01/2018
18;1;0;2.297,36;2.297,36;DE VIZIA TRANSFER S.P.A.;ZD620A07AF;SALDO Fatt.n. V3-31842  del 31/12/2017 Stampa calendari raccolta rifiuti 2018;18/01/2018;5787;0;335;1;Spese correnti;3;Acquisto di beni e servizi;1;Acquisto di beni;2;Altri beni di consumo;999;Altri beni e materiali di consumo n.a.c.;18/01/2018
19;1;0;1.803,16;1.803,16;TERMOIDRAULICA BELLUCCO ROBERTINO;Z702156C8A;SALDO Fatt.n. 000007-2017-T  del 28/12/2017 Lavori di riparazione servizi igienici del Polo Scolastico e Municipio;18/01/2018;1302;0;414;1;Spese correnti;3;Acquisto di beni e servizi;2;Acquisto di servizi;9;Manutenzione ordinaria e riparazioni;8;Manutenzione ordinaria e riparazioni di beni immobili;18/01/2018
20;1;0;2.470,91;2.470,91;BARBIN IMPIANTI Srl;ZD31B4433D;SALDO Fatt.n. 138S  del 31/12/2017 Manutenzione impianti pubblica illuminazione;18/01/2018;7430;0;339;1;Spese correnti;3;Acquisto di beni e servizi;2;Acquisto di servizi;9;Manutenzione ordinaria e riparazioni;4;Manutenzione ordinaria e riparazioni di impianti e macchinari;18/01/2018
21;1;0;1.755,15;1.755,15;BARBIN IMPIANTI Srl;Z2E2151CFB;SALDO Fatt.n. 139S  del 31/12/2017 Manutenzione straordinaria impianti elettrici;18/01/2018;7430;0;403;1;Spese correnti;3;Acquisto di beni e servizi;2;Acquisto di servizi;9;Manutenzione ordinaria e riparazioni;4;Manutenzione ordinaria e riparazioni di impianti e macchinari;18/01/2018
22;1;0;175,99;175,99;POSTE ITALIANE SPA;Z961438A4F;SALDO Fatt.n. 8717378507  del 13/12/2017 Fattura Elettronica relativa all'Identificativo Rendiconto 2094843222 - ottobre 2017;18/01/2018;4800;0;327;1;Spese correnti;3;Acquisto di beni e servizi;2;Acquisto di servizi;16;Servizi amministrativi;2;Spese postali;18/01/2018
23;1;0;77,51;77,51;Libreria Il Sentiero di Aghito Alessia; ;SALDO Fatt.n. 000001-2017-FE  del 22/12/2017 Fornitura libri di testo a bambini scuole elementari;18/01/2018;2950;0;392;1;Spese correnti;3;Acquisto di beni e servizi;1;Acquisto di beni;2;Altri beni di consumo;999;Altri beni e materiali di consumo n.a.c.;18/01/2018
24;1;0;330;330;EL.PO srl;Z371A735EA;ACCONTO Fatt.n. 002700  del 28/12/2017 Manutenzione ascensori 2' semestre 2017;18/01/2018;1310;0;169;1;Spese correnti;3;Acquisto di beni e servizi;2;Acquisto di servizi;9;Manutenzione ordinaria e riparazioni;8;Manutenzione ordinaria e riparazioni di beni immobili;18/01/2018
25;1;0;240;240;EL.PO srl;Z371A735EA;ACCONTO Fatt.n. 002700  del 28/12/2017 Manutenzione ascensori 2' semestre 2017;18/01/2018;1400;0;170;1;Spese correnti;3;Acquisto di beni e servizi;2;Acquisto di servizi;9;Manutenzione ordinaria e riparazioni;8;Manutenzione ordinaria e riparazioni di beni immobili;18/01/2018
26;1;0;318,35;318,35;EL.PO srl;Z371A735EA;ACCONTO Fatt.n. 002700  del 28/12/2017 Manutenzione ascensori 2' semestre 2017;18/01/2018;476;0;171;1;Spese correnti;3;Acquisto di beni e servizi;2;Acquisto di servizi;9;Manutenzione ordinaria e riparazioni;8;Manutenzione ordinaria e riparazioni di beni immobili;18/01/2018
27;1;0;180;180;EL.PO srl;Z371A735EA;SALDO Fatt.n. 002700  del 28/12/2017 Manutenzione ascensori 2' semestre 2017;18/01/2018;3180;0;172;1;Spese correnti;3;Acquisto di beni e servizi;1;Acquisto di beni;2;Altri beni di consumo;999;Altri beni e materiali di consumo n.a.c.;18/01/2018
28;1;0;56,12;56,12;EL.PO srl;Z371A735EA;ACCONTO Fatt.n. 002661  del 27/12/2017 Manutenzione ascensori comunali;18/01/2018;1310;0;417;1;Spese correnti;3;Acquisto di beni e servizi;2;Acquisto di servizi;9;Manutenzione ordinaria e riparazioni;8;Manutenzione ordinaria e riparazioni di beni immobili;18/01/2018
29;1;0;109,8;109,8;EL.PO srl;Z371A735EA;SALDO Fatt.n. 002661  del 27/12/2017 Manutenzione ascensori comunali;18/01/2018;3185;0;416;1;Spese correnti;3;Acquisto di beni e servizi;2;Acquisto di servizi;99;Altri servizi;999;Altri servizi diversi n.a.c.;18/01/2018
30;1;0;1.856,23;7.191,29;MARTINI LUCIANO SRL;Z70188CBBO;SALDO Fatt.n. 23/EL  del 19/12/2017 Lavori manutenzione strade eseguiti in ottobre e novembre 2017;18/01/2018;1302;0;356;1;Spese correnti;3;Acquisto di beni e servizi;2;Acquisto di servizi;9;Manutenzione ordinaria e riparazioni;8;Manutenzione ordinaria e riparazioni di beni immobili;18/01/2018
30;2;0;5.335,06;7.191,29;MARTINI LUCIANO SRL;Z70188CBBO;SALDO Fatt.n. 1/EL  del 17/01/2018 Lavori manutenzione strade mese di dicembre 2017;18/01/2018;1302;0;356;1;Spese correnti;3;Acquisto di beni e servizi;2;Acquisto di servizi;9;Manutenzione ordinaria e riparazioni;8;Manutenzione ordinaria e riparazioni di beni immobili;18/01/2018
31;1;0;135,36;397,56;E.ON Energia S.p.a.;Z7113FE6B2;SALDO Fatt.n. 40000076  del 03/01/2018 Fornitura gas naturale utenza Sede Municipale (matricola contatore 30155066) conguaglio periodo dal 06.05.2017 al 14.11.2017;22/01/2018;4751;0;433;1;Spese correnti;3;Acquisto di beni e servizi;2;Acquisto di servizi;5;Utenze e canoni;6;Gas;22/01/2018
31;2;0;262,2;397,56;E.ON Energia S.p.a.;Z7113FE6B2;ACCONTO Fatt.n. 40000608  del 03/01/2018 Fornitura gas naturale utenza Sede Municipale (matricola contatore 1545006563)  mese di novembre 2017;22/01/2018;4751;0;433;1;Spese correnti;3;Acquisto di beni e servizi;2;Acquisto di servizi;5;Utenze e canoni;6;Gas;22/01/2018
32;1;0;725,77;725,77;E.ON Energia S.p.a.;Z7113FE6B2;SALDO Fatt.n. 40000608  del 03/01/2018 Fornitura gas naturale utenza Sede Municipale (matricola contatore 1545006563)  mese di novembre 2017;22/01/2018;4751;0;62;1;Spese correnti;3;Acquisto di beni e servizi;2;Acquisto di servizi;5;Utenze e canoni;6;Gas;22/01/2018
33;1;0;1.284,71;1.284,71;E.ON Energia S.p.a.;Z7113FE6B2;SALDO Fatt.n. 40000610  del 03/01/2018 Fornitura gas naturale utenza immobile Piazzetta Martiri conguaglio periodo dal dal 31.10.2017 al 29.11.2017;22/01/2018;1405;0;61;1;Spese correnti;3;Acquisto di beni e servizi;2;Acquisto di servizi;5;Utenze e canoni;6;Gas;22/01/2018
34;1;0;1.012,60;1.012,60;E.ON Energia S.p.a.;Z7113FE6B2;ACCONTO Fatt.n. 40000609  del 03/01/2018 Fornitura gas naturale utenza Polo Scolastico mese di novembre 2017;22/01/2018;28001;0;63;1;Spese correnti;3;Acquisto di beni e servizi;2;Acquisto di servizi;5;Utenze e canoni;6;Gas;22/01/2018
35;1;0;1.012,60;1.012,60;E.ON Energia S.p.a.;Z7113FE6B2;ACCONTO Fatt.n. 40000609  del 03/01/2018 Fornitura gas naturale utenza Polo Scolastico mese di novembre 2017;22/01/2018;29701;0;64;1;Spese correnti;3;Acquisto di beni e servizi;2;Acquisto di servizi;5;Utenze e canoni;6;Gas;22/01/2018
36;1;0;1.012,74;1.012,74;E.ON Energia S.p.a.;Z711FE6B2;SALDO Fatt.n. 40000609  del 03/01/2018 Fornitura gas naturale utenza Polo Scolastico mese di novembre 2017;22/01/2018;31801;0;65;1;Spese correnti;3;Acquisto di beni e servizi;2;Acquisto di servizi;5;Utenze e canoni;6;Gas;22/01/2018
37;1;0;14,92;14,92;E.ON Energia S.p.a.;Z7113FE6B2;SALDO Fatt.n. 40000635  del 03/01/2018 Fornitura gas natura utenza Villa Venier conguaglio periodo dal 07.05.2017 al 14.11.2017;22/01/2018;1312;0;66;1;Spese correnti;3;Acquisto di beni e servizi;2;Acquisto di servizi;5;Utenze e canoni;6;Gas;22/01/2018
62;1;0;8.892,50;8.892,50;Cabi Broker Di Assicurazioni Srl;Z091B04FDB;Liquidazione premi assicurativi relativi alle polizze n. 709, n. M10919786 e n. M10919075 in scadenza il 31.01.2018;22/01/2018;477;0;10;1;Spese correnti;10;Altre spese correnti;4;Premi di assicurazione;99;Altri premi di assicurazione n.a.c.;999;Altri premi di assicurazione n.a.c.;22/01/2018
63;1;0;472,96;472,96;Illumia S.p.A.;Z0E14167CF;SALDO Fatt.n. 11509-PE  del 21/12/2017 Fornitura energia elettrica utenza Sede Municipale mese di novembre 2017  -  provv. 8;23/01/2018;4751;0;371;1;Spese correnti;3;Acquisto di beni e servizi;2;Acquisto di servizi;5;Utenze e canoni;4;Energia elettrica;23/01/2018
64;1;0;72,93;782,16;Illumia S.p.A.;Z0E14167CF;SALDO Fatt.n. 11197-PE  del 21/12/2017 Fornitura energia elettrica utenza Villa Venier (POD IT001E35511792) periodo ottobre / novembre 2017  -  provv. 16;23/01/2018;1312;0;378;1;Spese correnti;3;Acquisto di beni e servizi;2;Acquisto di servizi;5;Utenze e canoni;4;Energia elettrica;23/01/2018
64;2;0;72,93;782,16;Illumia S.p.A.;Z0E14167CF;SALDO Fatt.n. 11198-PE  del 21/12/2017 Fornitura energia elettruca utenza Villa Venier (POD IT001E35511782)  periodo ottobre / novembre 2017  -  provv. 17;23/01/2018;1312;0;378;1;Spese correnti;3;Acquisto di beni e servizi;2;Acquisto di servizi;5;Utenze e canoni;4;Energia elettrica;23/01/2018
64;3;0;96,01;782,16;Illumia S.p.A.;Z0E14167CF;SALDO Fatt.n. 11505-PE  del 21/12/2017 Fornitura energia elettrica utenza Villa Venier (POD IT001E04020277) periodo ottobre / novembre 2017  -  provv. 4;23/01/2018;1312;0;378;1;Spese correnti;3;Acquisto di beni e servizi;2;Acquisto di servizi;5;Utenze e canoni;4;Energia elettrica;23/01/2018
64;4;0;96,01;782,16;Illumia S.p.A.;Z0E14167CF;SALDO Fatt.n. 11326-PE  del 21/12/2017 Fornitura energia elettrica utenza Villa Venier (POD IT001E04020273) periodo ottobre / novembre 2017  -  provv. 5;23/01/2018;1312;0;378;1;Spese correnti;3;Acquisto di beni e servizi;2;Acquisto di servizi;5;Utenze e canoni;4;Energia elettrica;23/01/2018
64;5;0;444,28;782,16;Illumia S.p.A.;Z0E14167CF;SALDO Fatt.n. 11508-PE  del 21/12/2017 Fornitura energia elettrica utenza Villa Venier (POD IT001E34674161) mese di novembre 2017  -  provv. 7;23/01/2018;1312;0;378;1;Spese correnti;3;Acquisto di beni e servizi;2;Acquisto di servizi;5;Utenze e canoni;4;Energia elettrica;23/01/2018
65;1;0;96,01;10.173,20;Illumia S.p.A.;Z0E14167CF;SALDO Fatt.n. 11506-PE  del 21/12/2017 Fornitura energia elettrica utenza illuminazione pubblica (POD IT001E04199192) periodo ottobre / novembre 2017  -  provv. 14;23/01/2018;7420;0;380;1;Spese correnti;3;Acquisto di beni e servizi;2;Acquisto di servizi;5;Utenze e canoni;4;Energia elettrica;23/01/2018
65;2;0;99,49;10.173,20;Illumia S.p.A.;Z0E14167CF;SALDO Fatt.n. 11195-PE  del 21/12/2017 Fornitura energia elettrica utenza illuminazione pubblica (POD IT001E32268714) mese di novembre 2017  -  provv. 10;23/01/2018;7420;0;380;1;Spese correnti;3;Acquisto di beni e servizi;2;Acquisto di servizi;5;Utenze e canoni;4;Energia elettrica;23/01/2018
65;3;0;118,45;10.173,20;Illumia S.p.A.;Z0E14167CF;SALDO Fatt.n. 11116-PE  del 21/12/2017 Fornitura energia elettrica utenza torretta Piazzetta Spolverato mese di novembre 2017  -  provv. 20;23/01/2018;7420;0;380;1;Spese correnti;3;Acquisto di beni e servizi;2;Acquisto di servizi;5;Utenze e canoni;4;Energia elettrica;23/01/2018
65;4;0;188,66;10.173,20;Illumia S.p.A.;Z0E14167CF;SALDO Fatt.n. 11504-PE  del 21/12/2017 Fornitura energia elettrica utenza lottizzazione Canaletto periodo ottobre / novembre 2017  -  provv. 3;23/01/2018;7420;0;380;1;Spese correnti;3;Acquisto di beni e servizi;2;Acquisto di servizi;5;Utenze e canoni;4;Energia elettrica;23/01/2018
65;5;0;9.670,59;10.173,20;Illumia S.p.A.;Z0E14167CF;SALDO Fatt.n. 11194-PE  del 21/12/2017 Fornitura energia elettrica utenze illuminazione pubblica periodo ottobre / novembre 2017  -  provv. 9;23/01/2018;7420;0;380;1;Spese correnti;3;Acquisto di beni e servizi;2;Acquisto di servizi;5;Utenze e canoni;4;Energia elettrica;23/01/2018
66;1;0;377,1;377,1;Illumia S.p.A.;Z0E14167CF;SALDO Fatt.n. 11507-PE  del 21/12/2017 Fornitura energia elettrica utenza Immobile Piazzetta Martiri mese di novembre 2017  -  provv. 6;23/01/2018;1405;0;379;1;Spese correnti;3;Acquisto di beni e servizi;2;Acquisto di servizi;5;Utenze e canoni;4;Energia elettrica;23/01/2018
67;1;0;119,9;660,12;Illumia S.p.A.;Z0E14167CF;SALDO Fatt.n. 11325-PE  del 21/12/2017 Fornitura energia elettrica utenza impianto sportivo Zovon mese di novembre 2017  -  provv. 13;23/01/2018;64981;0;376;1;Spese correnti;3;Acquisto di beni e servizi;2;Acquisto di servizi;5;Utenze e canoni;4;Energia elettrica;23/01/2018
67;2;0;540,22;660,12;Illumia S.p.A.;Z0E14167CF;SALDO Fatt.n. 11115-PE  del 21/12/2017 Fornitura energia elettrica utenza impianto sportivo Via Marconi mese di novembre 2017  -  provv. 19;23/01/2018;64981;0;376;1;Spese correnti;3;Acquisto di beni e servizi;2;Acquisto di servizi;5;Utenze e canoni;4;Energia elettrica;23/01/2018
68;1;0;60,51;159,87;Illumia S.p.A.;Z0E14167CF;SALDO Fatt.n. 11323-PE  del 21/12/2017 Fornitura energia elettrica utenza ex scuola Vo Vecchio (POD IT001E04020269) periodo ottobre / novembre 2017  -  provv. 11;23/01/2018;1330;0;375;1;Spese correnti;3;Acquisto di beni e servizi;2;Acquisto di servizi;5;Utenze e canoni;4;Energia elettrica;23/01/2018
68;2;0;99,36;159,87;Illumia S.p.A.;Z0E14167CF;SALDO Fatt.n. 11196-PE  del 21/12/2017 Fornitura energia elettrica utenza immobile ex scuola Zovon periodo ottobre / novembre 2017  -  provv. 15;23/01/2018;1330;0;375;1;Spese correnti;3;Acquisto di beni e servizi;2;Acquisto di servizi;5;Utenze e canoni;4;Energia elettrica;23/01/2018
69;1;0;214,38;214,38;Illumia S.p.A.;Z0E14167CF;SALDO Fatt.n. 11199-PE  del 21/12/2017 Fornitura energia elettrica utenza magazzino comunale periodo ottobre / novembre 2017  -  provv. 18;23/01/2018;1450;0;377;1;Spese correnti;3;Acquisto di beni e servizi;2;Acquisto di servizi;5;Utenze e canoni;4;Energia elettrica;23/01/2018
70;1;0;475,52;475,52;Illumia S.p.A.;Z0E14167CF;ACCONTO Fatt.n. 11324-PE  del 21/12/2017 Fornitura energia elettrica utenza Polo Scolastico mese di novembre 2017  -  provv. 12;23/01/2018;28001;0;372;1;Spese correnti;3;Acquisto di beni e servizi;2;Acquisto di servizi;5;Utenze e canoni;4;Energia elettrica;23/01/2018
71;1;0;475,52;475,52;Illumia S.p.A.;Z0E14167CF;ACCONTO Fatt.n. 11324-PE  del 21/12/2017 Fornitura energia elettrica utenza Polo Scolastico mese di novembre 2017  -  provv. 12;23/01/2018;29701;0;373;1;Spese correnti;3;Acquisto di beni e servizi;2;Acquisto di servizi;5;Utenze e canoni;4;Energia elettrica;23/01/2018
72;1;0;475,52;475,52;Illumia S.p.A.;Z0E14167CF;SALDO Fatt.n. 11324-PE  del 21/12/2017 Fornitura energia elettrica utenza Polo Scolastico mese di novembre 2017  -  provv. 12;23/01/2018;31801;0;374;1;Spese correnti;3;Acquisto di beni e servizi;2;Acquisto di servizi;5;Utenze e canoni;4;Energia elettrica;23/01/2018
73;1;0;717,89;717,89;ANCI - ASSOCIAZIONE NAZIONALE COMUNI ITALIANI; ;Quota Associazione Nazionale  Comuni Italiani  Anno 2018 - A.L. AC N. 20 DEL 24.01.2018;26/01/2018;580;0;20;1;Spese correnti;4;Trasferimenti correnti;1;Trasferimenti correnti a Amministrazioni Pubbliche;2;Trasferimenti correnti a Amministrazioni Locali;999;Trasferimenti correnti a altre Amministrazioni Locali n.a.c.;26/01/2018
74;1;0;671,36;671,36;ANCI VENETO; ;Quota associativa e percorso formativo per dipendenti comunali ed amministratori anno 2018 - a.l. AC N. 19 DEL 24.01.2018;26/01/2018;580;0;18;1;Spese correnti;4;Trasferimenti correnti;1;Trasferimenti correnti a Amministrazioni Pubbliche;2;Trasferimenti correnti a Amministrazioni Locali;999;Trasferimenti correnti a altre Amministrazioni Locali n.a.c.;26/01/2018
75;1;0;1.069,70;1.069,70;ASS.NAZIONALE CITTA' DEL VINO; ;Quota associativa anno 2018 - A.L. AC N. 21 DEL 24.01.2018;26/01/2018;580;0;19;1;Spese correnti;4;Trasferimenti correnti;1;Trasferimenti correnti a Amministrazioni Pubbliche;2;Trasferimenti correnti a Amministrazioni Locali;999;Trasferimenti correnti a altre Amministrazioni Locali n.a.c.;26/01/2018
76;1;0;1.950,00;1.950,00;CONSORZIO BIBLIOTECHE PADOVANE ASSOCIATE; ;Quota consortile anno 2018 - A.L. AC N. 18 DEL 23.01.2018;26/01/2018;3760;0;17;1;Spese correnti;3;Acquisto di beni e servizi;2;Acquisto di servizi;99;Altri servizi;999;Altri servizi diversi n.a.c.;26/01/2018
77;1;0;250;250;BIODISTRETTO COLLI EUGANEI; ;Quota associativa anno 2017 - a.l. AC n. 17 del 23.01.2018;26/01/2018;580;0;14;1;Spese correnti;4;Trasferimenti correnti;1;Trasferimenti correnti a Amministrazioni Pubbliche;2;Trasferimenti correnti a Amministrazioni Locali;999;Trasferimenti correnti a altre Amministrazioni Locali n.a.c.;26/01/2018
78;1;0;165,12;165,12;PILO SNC;Z641F2729B;SALDO Fatt.n. 2/E  del 31/12/2017 Servizio sostitutivo mensa dipendenti comunali mese di dicembre 2017;26/01/2018;9375;0;206;1;Spese correnti;3;Acquisto di beni e servizi;2;Acquisto di servizi;99;Altri servizi;999;Altri servizi diversi n.a.c.;26/01/2018
79;1;0;4.440,80;4.440,80;FALTRACCO CLAUDIO; ;SALDO Fatt.n. 1/E  del 04/01/2018 Compenso per l'attivit di revisione dei conti per l'anno 2017;26/01/2018;576;0;14;1;Spese correnti;3;Acquisto di beni e servizi;2;Acquisto di servizi;1;Organi e incarichi istituzionali dell'amministrazione;8;Compensi agli organi istituzionali di revisione, di controllo ed altri incarichi istituzionali dell'amministrazione;26/01/2018
80;1;0;629,52;629,52;ACCATRE S.r.l.;Z721F3CB95;SALDO Fatt.n. 1/171330  del 19/12/2017 Installazione ed attivazione portale HRMS;26/01/2018;555;0;242;1;Spese correnti;3;Acquisto di beni e servizi;2;Acquisto di servizi;19;Servizi informatici e di telecomunicazioni;1;Gestione e manutenzione applicazioni;26/01/2018
81;1;0;1.464,00;1.464,00;ACCATRE S.r.l.;ZC820773FA;SALDO Fatt.n. 1/171329  del 19/12/2017 Attivazione servizio economico patrimoniale;26/01/2018;555;0;359;1;Spese correnti;3;Acquisto di beni e servizi;2;Acquisto di servizi;19;Servizi informatici e di telecomunicazioni;1;Gestione e manutenzione applicazioni;26/01/2018
83;1;0;670,8;670,8;CONSORZIO BIBLIOTECHE PADOVANE ASSOCIATE; ;Acquisto centralizzato libri per Biblioteca Comunale - A.L. AC N. 7 DEL 22.01.2018;26/01/2018;3760;0;412;1;Spese correnti;3;Acquisto di beni e servizi;2;Acquisto di servizi;99;Altri servizi;999;Altri servizi diversi n.a.c.;26/01/2018
84;1;0;4.924,82;4.924,82;CONSORZIO BIBLIOTECHE PADOVANE ASSOCIATE; ;Gestione della Biblioteca Comunale per l'anno 2017 - A.L. AC N. 8 DEL 22.01.2018;26/01/2018;3760;0;434;1;Spese correnti;3;Acquisto di beni e servizi;2;Acquisto di servizi;99;Altri servizi;999;Altri servizi diversi n.a.c.;26/01/2018
85;1;0;2.684,00;2.684,00;Tecnosound di Miolo L. & C. snc;Z2B118C56;SALDO Fatt.n. 12/PA  del 12/12/2017 Installazione ed attivazione proiezioni natalizie;26/01/2018;150;0;389;1;Spese correnti;3;Acquisto di beni e servizi;2;Acquisto di servizi;99;Altri servizi;999;Altri servizi diversi n.a.c.;26/01/2018
86;1;0;419,91;419,91;Sodexo Italia Spa;64630250F4;SALDO Fatt.n. 6400056780  del 31/12/2017 Servizio di sorveglianza refettorio mese di dicembre 2017;26/01/2018;3406;0;399;1;Spese correnti;3;Acquisto di beni e servizi;2;Acquisto di servizi;15;Contratti di servizio pubblico;6;Contratti di servizio per le mense scolastiche;26/01/2018
87;1;0;2.289,98;2.289,98;Sodexo Italia Spa;64630250F4;SALDO Fatt.n. 6400056778  del 31/12/2017 Fornitura pasti bambini scuola materna mese di dicembre 2017;26/01/2018;3404;0;45;1;Spese correnti;3;Acquisto di beni e servizi;2;Acquisto di servizi;15;Contratti di servizio pubblico;6;Contratti di servizio per le mense scolastiche;26/01/2018
88;1;0;2.266,37;2.266,37;Sodexo Italia Spa;64630250F4;SALDO Fatt.n. 6400056779  del 31/12/2017 Pasti forniti ai bambini scuole elementari mese di dicembre 2017;26/01/2018;3406;0;46;1;Spese correnti;3;Acquisto di beni e servizi;2;Acquisto di servizi;15;Contratti di servizio pubblico;6;Contratti di servizio per le mense scolastiche;26/01/2018
89;1;0;4.169,00;4.169,00;COOPERATIVA SOCIALE SERVIZI ASSOCIATI;7079166895;SALDO Fatt.n. D-477  del 31/12/2017 Servizio di trasporto scolastico mese di dicembre 2017;26/01/2018;3413;0;279;1;Spese correnti;3;Acquisto di beni e servizi;2;Acquisto di servizi;15;Contratti di servizio pubblico;2;Contratti di servizio di trasporto scolastico;26/01/2018
90;1;0;750;750;"CASA DI RIPOSO ""A. SIMIONATI"""; ;SALDO Fatt.n. 159/E  del 31/12/2017 Retta di ricovero R.R. dicembre 2017;26/01/2018;6875;0;243;1;Spese correnti;3;Acquisto di beni e servizi;2;Acquisto di servizi;99;Altri servizi;999;Altri servizi diversi n.a.c.;26/01/2018
91;1;0;1.491,23;1.491,23;Ass. ANTEAS; ;Rimborso quota carburante per il trasporto di persone in difficolta presso le strutture sanitarie anno 2017 - AL A.C. N. 16 DEL 22.01.2018;26/01/2018;6955;0;114;1;Spese correnti;4;Trasferimenti correnti;4;Trasferimenti correnti a Istituzioni Sociali Private;1;Trasferimenti correnti a Istituzioni Sociali Private;1;Trasferimenti correnti a Istituzioni Sociali Private;26/01/2018
92;1;0;52,38;52,38;Bortoli di Bortoli Dario & C. S.N.C.; ;SALDO Fatt.n. 2  del 12/01/2018 Fornitura libri di testo per alunni Scuola Primaria a.s. 2017/2018;26/01/2018;2950;0;7;1;Spese correnti;3;Acquisto di beni e servizi;1;Acquisto di beni;2;Altri beni di consumo;999;Altri beni e materiali di consumo n.a.c.;26/01/2018
93;1;0;887,38;887,38;TREVISAN VANESSA; ;Indennita di carica Sindaco gennaio 2018;05/02/2018;10;0;24;1;Spese correnti;3;Acquisto di beni e servizi;2;Acquisto di servizi;1;Organi e incarichi istituzionali dell'amministrazione;1;Organi istituzionali dell'amministrazione - Indennità;05/02/2018
94;1;0;177,48;177,48;CALAON SIMONE; ;Indennita di carica Vice-Sindaco gennaio 2018;05/02/2018;10;0;25;1;Spese correnti;3;Acquisto di beni e servizi;2;Acquisto di servizi;1;Organi e incarichi istituzionali dell'amministrazione;1;Organi istituzionali dell'amministrazione - Indennità;05/02/2018
95;1;0;133,11;133,11;LAZZARETTO ROBERTA; ;Indennita di carica Assessore gennaio 2018;05/02/2018;10;0;27;1;Spese correnti;3;Acquisto di beni e servizi;2;Acquisto di servizi;1;Organi e incarichi istituzionali dell'amministrazione;1;Organi istituzionali dell'amministrazione - Indennità;05/02/2018
96;1;0;62,72;62,72;LAZZARETTO ROBERTA; ;Rimborso spese viaggio dicembre 2017 - A.L. A.C. N. 24 DEL 02.02.2018;05/02/2018;230;0;159;1;Spese correnti;3;Acquisto di beni e servizi;2;Acquisto di servizi;1;Organi e incarichi istituzionali dell'amministrazione;2;Organi istituzionali dell'amministrazione - Rimborsi;05/02/2018
97;1;0;133,24;133,24;LAZZARETTO ROBERTA; ;Rimborso per spese di viaggio  GENNAIO 2018 - a.l. AC N. 24 DEL 02.02.2018;05/02/2018;230;0;33;1;Spese correnti;3;Acquisto di beni e servizi;2;Acquisto di servizi;1;Organi e incarichi istituzionali dell'amministrazione;2;Organi istituzionali dell'amministrazione - Rimborsi;05/02/2018
98;1;0;266,21;266,21;ZAVATTIERO AGOSTINO; ;Indennita di carica Assessore GENNAIO 2018;05/02/2018;10;0;28;1;Spese correnti;3;Acquisto di beni e servizi;2;Acquisto di servizi;1;Organi e incarichi istituzionali dell'amministrazione;1;Organi istituzionali dell'amministrazione - Indennità;05/02/2018
99;1;0;266,21;266,21;SANTIMARIA ANDREA; ;Indennita di carica Assessore GENNAIO 2018;05/02/2018;10;0;26;1;Spese correnti;3;Acquisto di beni e servizi;2;Acquisto di servizi;1;Organi e incarichi istituzionali dell'amministrazione;1;Organi istituzionali dell'amministrazione - Indennità;05/02/2018
102;1;0;1.330,00;1.330,00;OMESSO NOMINATIVO NEL RISPETTO DELLA NORMATIVA SULLA PROTEZIONE DATI PERSONALI; ;Contributo Regionale BUONO FAMIGLIA anno 2014/2015 -A.L. AC N. 23 DEL 01.02.2018;05/02/2018;6935;0;357;1;Spese correnti;4;Trasferimenti correnti;2;Trasferimenti correnti a Famiglie;5;Altri trasferimenti a famiglie;999;Altri trasferimenti a famiglie n.a.c.;05/02/2018
103;1;0;13.323,83;13.323,83;DE VIZIA TRANSFER S.P.A.;6848933E4B;SALDO Fatt.n. V3-30009  del 31/01/2018 Servizio di raccolta RSU gennaio 2018;05/02/2018;5780;0;18;1;Spese correnti;3;Acquisto di beni e servizi;2;Acquisto di servizi;15;Contratti di servizio pubblico;4;Contratti di servizio per la raccolta rifiuti;05/02/2018
104;1;0;481,5;481,5;AUTOFFICINA ELETTRAUTO BARBIERO SNC DI BARBIERO ETTORE;ZF62155BB6;SALDO Fatt.n. 6/01  del 29/12/2017 Manutenzione Fiat Grande Punto targa DT038LH  Fiat Doblo targa DH568NN;05/02/2018;572;0;409;1;Spese correnti;3;Acquisto di beni e servizi;2;Acquisto di servizi;9;Manutenzione ordinaria e riparazioni;1;Manutenzione ordinaria e riparazioni di mezzi di trasporto ad uso civile, di sicurezza e ordine pubblico;05/02/2018
105;1;0;894,1;894,1;AUTOFFICINA ELETTRAUTO BARBIERO SNC DI BARBIERO ETTORE;Z4020E8C68;SALDO Fatt.n. 5/01  del 12/12/2017 Manutenzione veicolo Fiat Iveco Daily targa FJ848RE;05/02/2018;9397;0;384;2;Spese in conto capitale;2;Investimenti fissi lordi e acquisto di terreni;1;Beni materiali;1;Mezzi di trasporto ad uso civile, di sicurezza e ordine pubblico;1;Mezzi di trasporto stradali;05/02/2018
106;1;0;1.647,00;1.647,00;LAZZARINI LORIS;Z5620A59DC;SALDO Fatt.n. FATTPA 2_18  del 29/01/2018 Riparazione e verniciatura pannelli recinzione Monumento ai Caduti in Piazza Liberazione;05/02/2018;1302;0;341;1;Spese correnti;3;Acquisto di beni e servizi;2;Acquisto di servizi;9;Manutenzione ordinaria e riparazioni;8;Manutenzione ordinaria e riparazioni di beni immobili;05/02/2018
107;1;0;488;488;LAZZARINI LORIS;Z8F20A5989;SALDO Fatt.n. FATTPA 1_18  del 29/01/2018 Fornitura ed installazione cassette porta attrezzi su camion operai;05/02/2018;9397;0;337;2;Spese in conto capitale;2;Investimenti fissi lordi e acquisto di terreni;1;Beni materiali;1;Mezzi di trasporto ad uso civile, di sicurezza e ordine pubblico;1;Mezzi di trasporto stradali;05/02/2018
108;1;0;598,6;598,6;POSTE ITALIANE SPA;Z961438A4F;ACCONTO Fatt.n. 8718023267  del 26/01/2018 Fattura elettronica relativa all'identificativo rendiconto 2095309282;05/02/2018;4800;0;327;1;Spese correnti;3;Acquisto di beni e servizi;2;Acquisto di servizi;16;Servizi amministrativi;2;Spese postali;05/02/2018
109;1;0;703,08;703,08;POSTE ITALIANE SPA;Z961438A4F;SALDO Fatt.n. 8718023267  del 26/01/2018 Fattura elettronica relativa all'identificativo rendiconto 2095309282;05/02/2018;4800;0;404;1;Spese correnti;3;Acquisto di beni e servizi;2;Acquisto di servizi;16;Servizi amministrativi;2;Spese postali;05/02/2018
117;1;0;5.032,50;5.032,50;ACCATRE S.r.l.;Z021BBA232;SALDO Fatt.n. 1/180048  del 09/01/2018 Attivita di bonifica ICI/IMU svolta nell'anno 2017;07/02/2018;1485;0;373;1;Spese correnti;3;Acquisto di beni e servizi;2;Acquisto di servizi;99;Altri servizi;999;Altri servizi diversi n.a.c.;07/02/2018
118;1;0;1.952,00;1.952,00;ACCATRE S.r.l.;Z43207F5D4;SALDO Fatt.n. 1/171352  del 19/12/2017 Gestione ufficio tributi dicembre 2017;07/02/2018;1470;0;360;1;Spese correnti;3;Acquisto di beni e servizi;2;Acquisto di servizi;17;Servizi finanziari;999;Spese per servizi finanziari n.a.c.;07/02/2018
119;1;0;134,93;134,93;GRAFICHE E. GASPARI S.R.L.;ZBF20084DD;SALDO Fatt.n. 16309  del 30/11/2017 Fornitura registri di stato civile anno 2018;07/02/2018;910;0;296;1;Spese correnti;3;Acquisto di beni e servizi;1;Acquisto di beni;2;Altri beni di consumo;999;Altri beni e materiali di consumo n.a.c.;07/02/2018
120;1;0;52,65;52,65;Busitalia Veneto spa; ;SALDO Fatt.n. 8121000058  del 30/01/2018 QUOTA ABBONAMENTI QUARTO TRIMESTRE 2017;07/02/2018;6935;0;345;1;Spese correnti;4;Trasferimenti correnti;2;Trasferimenti correnti a Famiglie;5;Altri trasferimenti a famiglie;999;Altri trasferimenti a famiglie n.a.c.;07/02/2018
121;1;0;1.304,75;1.304,75;L.EU.DI.CA. - Associazione Lega Europea per la Difesa; ;Servizio di custodia, ricovero, mantenimento ed affidamento cani e gatti randagi e/o vaganti catturati nel territorio comunale 2 SEM. 2017 - a.l. ac n. 31 del 06.02.2018;07/02/2018;5037;0;168;1;Spese correnti;3;Acquisto di beni e servizi;2;Acquisto di servizi;15;Contratti di servizio pubblico;11;Contratti di servizio per la lotta al randagismo;07/02/2018
122;1;0;800;800;Ass. ANTEAS; ;Contributo di compartecipazione alle spese di viaggio dei partecipanti al soggiorno climatico ad Igea Marina anno 2017 - A.L. AC N. 30 DEL 06.02.2018;07/02/2018;6950;0;290;1;Spese correnti;3;Acquisto di beni e servizi;2;Acquisto di servizi;99;Altri servizi;999;Altri servizi diversi n.a.c.;07/02/2018
123;1;0;387,74;387,74;MAGAZZINI AMBROSI S.A.S. DI AMBROSI FABIO E TIZIANA;ZC91E16A38;SALDO Fatt.n. 1  del 31/01/2018 Materiale da ferramenta gennaio 2018;07/02/2018;1300;0;38;1;Spese correnti;3;Acquisto di beni e servizi;1;Acquisto di beni;2;Altri beni di consumo;999;Altri beni e materiali di consumo n.a.c.;07/02/2018
124;1;0;242;242;BOGONI ALFONSO & C. S.A.S.;Z9E1D16A02;SALDO Fatt.n. V000009FE  del 31/10/2017 Fornitura gasolio mese di ottobre 2017;07/02/2018;570;0;86;1;Spese correnti;3;Acquisto di beni e servizi;1;Acquisto di beni;2;Altri beni di consumo;2;Carburanti, combustibili e lubrificanti;07/02/2018
125;1;0;9,49;607,36;AMBROSI FRANCESCA; ;Gettoni 2017 per presenze  Capigruppi Consiliari e Componenti Commissioni Consiliari. - A.L. A.C. N. 15 DEL 22.01.2018;08/02/2018;12;0;117;1;Spese correnti;3;Acquisto di beni e servizi;2;Acquisto di servizi;1;Organi e incarichi istituzionali dell'amministrazione;1;Organi istituzionali dell'amministrazione - Indennità;08/02/2018
125;2;0;18,98;607,36;AMBROSI PAOLO; ;Gettoni 2017 per presenze  Capigruppi Consiliari e Componenti Commissioni Consiliari. - A.L. A.C. N. 15 DEL 22.01.2018;08/02/2018;12;0;117;1;Spese correnti;3;Acquisto di beni e servizi;2;Acquisto di servizi;1;Organi e incarichi istituzionali dell'amministrazione;1;Organi istituzionali dell'amministrazione - Indennità;08/02/2018
125;3;0;56,94;607,36;BELLOTTI ROBERTO; ;Gettoni 2017 per presenze  Capigruppi Consiliari e Componenti Commissioni Consiliari. - A.L. A.C. N. 15 DEL 22.01.2018;08/02/2018;12;0;117;1;Spese correnti;3;Acquisto di beni e servizi;2;Acquisto di servizi;1;Organi e incarichi istituzionali dell'amministrazione;1;Organi istituzionali dell'amministrazione - Indennità;08/02/2018
125;4;0;66,43;607,36;BERTON ANDREA; ;Gettoni 2017 per presenze  Capigruppi Consiliari e Componenti Commissioni Consiliari. - A.L. A.C. N. 15 DEL 22.01.2018;08/02/2018;12;0;117;1;Spese correnti;3;Acquisto di beni e servizi;2;Acquisto di servizi;1;Organi e incarichi istituzionali dell'amministrazione;1;Organi istituzionali dell'amministrazione - Indennità;08/02/2018
125;5;0;18,98;607,36;BOZZOLAN SANDRO; ;Gettoni 2017 per presenze  Capigruppi Consiliari e Componenti Commissioni Consiliari. - A.L. A.C. N. 15 DEL 22.01.2018;08/02/2018;12;0;117;1;Spese correnti;3;Acquisto di beni e servizi;2;Acquisto di servizi;1;Organi e incarichi istituzionali dell'amministrazione;1;Organi istituzionali dell'amministrazione - Indennità;08/02/2018
125;6;0;170,82;607,36;LOVISON CLAUDIO; ;Gettoni 2017 per presenze  Capigruppi Consiliari e Componenti Commissioni Consiliari. - A.L. A.C. N. 15 DEL 22.01.2018;08/02/2018;12;0;117;1;Spese correnti;3;Acquisto di beni e servizi;2;Acquisto di servizi;1;Organi e incarichi istituzionali dell'amministrazione;1;Organi istituzionali dell'amministrazione - Indennità;08/02/2018
125;7;0;94,9;607,36;POLITO ERIKA; ;Gettoni 2017 per presenze  Capigruppi Consiliari e Componenti Commissioni Consiliari. - A.L. A.C. N. 15 DEL 22.01.2018;08/02/2018;12;0;117;1;Spese correnti;3;Acquisto di beni e servizi;2;Acquisto di servizi;1;Organi e incarichi istituzionali dell'amministrazione;1;Organi istituzionali dell'amministrazione - Indennità;08/02/2018
125;8;0;170,82;607,36;ZAMPELLA ANDREA; ;Gettoni 2017 per presenze  Capigruppi Consiliari e Componenti Commissioni Consiliari. - A.L. A.C. N. 15 DEL 22.01.2018;08/02/2018;12;0;117;1;Spese correnti;3;Acquisto di beni e servizi;2;Acquisto di servizi;1;Organi e incarichi istituzionali dell'amministrazione;1;Organi istituzionali dell'amministrazione - Indennità;08/02/2018
126;1;0;75,92;816,14;AMBROSI FRANCESCA; ;Gettoni anno 2017 per presenze Consiglieri Comunali - a.l. AC N. 15 DEL 22.01.2018;08/02/2018;12;0;116;1;Spese correnti;3;Acquisto di beni e servizi;2;Acquisto di servizi;1;Organi e incarichi istituzionali dell'amministrazione;1;Organi istituzionali dell'amministrazione - Indennità;08/02/2018
126;2;0;66,43;816,14;AMBROSI PAOLO; ;Gettoni anno 2017 per presenze Consiglieri Comunali - a.l. AC N. 15 DEL 22.01.2018;08/02/2018;12;0;116;1;Spese correnti;3;Acquisto di beni e servizi;2;Acquisto di servizi;1;Organi e incarichi istituzionali dell'amministrazione;1;Organi istituzionali dell'amministrazione - Indennità;08/02/2018
126;3;0;94,9;816,14;BELLOTTI ROBERTO; ;Gettoni anno 2017 per presenze Consiglieri Comunali - a.l. AC N. 15 DEL 22.01.2018;08/02/2018;12;0;116;1;Spese correnti;3;Acquisto di beni e servizi;2;Acquisto di servizi;1;Organi e incarichi istituzionali dell'amministrazione;1;Organi istituzionali dell'amministrazione - Indennità;08/02/2018
126;4;0;85,41;816,14;BERTON ANDREA; ;Gettoni anno 2017 per presenze Consiglieri Comunali - a.l. AC N. 15 DEL 22.01.2018;08/02/2018;12;0;116;1;Spese correnti;3;Acquisto di beni e servizi;2;Acquisto di servizi;1;Organi e incarichi istituzionali dell'amministrazione;1;Organi istituzionali dell'amministrazione - Indennità;08/02/2018
126;5;0;75,92;816,14;BOZZOLAN SANDRO; ;Gettoni anno 2017 per presenze Consiglieri Comunali - a.l. AC N. 15 DEL 22.01.2018;08/02/2018;12;0;116;1;Spese correnti;3;Acquisto di beni e servizi;2;Acquisto di servizi;1;Organi e incarichi istituzionali dell'amministrazione;1;Organi istituzionali dell'amministrazione - Indennità;08/02/2018
126;6;0;94,9;816,14;LOVISON CLAUDIO; ;Gettoni anno 2017 per presenze Consiglieri Comunali - a.l. AC N. 15 DEL 22.01.2018;08/02/2018;12;0;116;1;Spese correnti;3;Acquisto di beni e servizi;2;Acquisto di servizi;1;Organi e incarichi istituzionali dell'amministrazione;1;Organi istituzionali dell'amministrazione - Indennità;08/02/2018
126;7;0;75,92;816,14;MARTINI OMAR; ;Gettoni anno 2017 per presenze Consiglieri Comunali - a.l. AC N. 15 DEL 22.01.2018;08/02/2018;12;0;116;1;Spese correnti;3;Acquisto di beni e servizi;2;Acquisto di servizi;1;Organi e incarichi istituzionali dell'amministrazione;1;Organi istituzionali dell'amministrazione - Indennità;08/02/2018
126;8;0;75,92;816,14;POLITO ERIKA; ;Gettoni anno 2017 per presenze Consiglieri Comunali - a.l. AC N. 15 DEL 22.01.2018;08/02/2018;12;0;116;1;Spese correnti;3;Acquisto di beni e servizi;2;Acquisto di servizi;1;Organi e incarichi istituzionali dell'amministrazione;1;Organi istituzionali dell'amministrazione - Indennità;08/02/2018
126;9;0;85,41;816,14;ZAMPELLA ANDREA; ;Gettoni anno 2017 per presenze Consiglieri Comunali - a.l. AC N. 15 DEL 22.01.2018;08/02/2018;12;0;116;1;Spese correnti;3;Acquisto di beni e servizi;2;Acquisto di servizi;1;Organi e incarichi istituzionali dell'amministrazione;1;Organi istituzionali dell'amministrazione - Indennità;08/02/2018
126;10;0;85,41;816,14;ZATTARIN EMO; ;Gettoni anno 2017 per presenze Consiglieri Comunali - a.l. AC N. 15 DEL 22.01.2018;08/02/2018;12;0;116;1;Spese correnti;3;Acquisto di beni e servizi;2;Acquisto di servizi;1;Organi e incarichi istituzionali dell'amministrazione;1;Organi istituzionali dell'amministrazione - Indennità;08/02/2018
129;1;0;402,65;1.002,44;E.ON Energia S.p.a.;Z7113FE6B2;SALDO Fatt.n. 40000829  del 01/02/2018 Fornitura gas naturale utenza Sede Municipale (matricola contatore 30155066) periodo dal 15.11.2017 al 31.12.2017;13/02/2018;4751;0;433;1;Spese correnti;3;Acquisto di beni e servizi;2;Acquisto di servizi;5;Utenze e canoni;6;Gas;13/02/2018
129;2;0;599,79;1.002,44;E.ON Energia S.p.a.;Z7113FE6B2;ACCONTO Fatt.n. 40001354  del 01/02/2018 Fornitura gas metano utenza Sede Municipale (matricola contatore 1545006563) mese di dicembre 2017;13/02/2018;4751;0;433;1;Spese correnti;3;Acquisto di beni e servizi;2;Acquisto di servizi;5;Utenze e canoni;6;Gas;13/02/2018
130;1;0;696,07;696,07;E.ON Energia S.p.a.; ;SALDO Fatt.n. 40001354  del 01/02/2018 Fornitura gas metano utenza Sede Municipale (matricola contatore 1545006563) mese di dicembre 2017;13/02/2018;4751;0;60;1;Spese correnti;3;Acquisto di beni e servizi;2;Acquisto di servizi;5;Utenze e canoni;6;Gas;13/02/2018
131;1;0;625,79;625,79;E.ON Energia S.p.a.;Z7113FE6B2;ACCONTO Fatt.n. 40001355  del 01/02/2018 Fornitura gas naturale utenza Polo Scolastico mese di dicembre 2017;13/02/2018;28001;0;63;1;Spese correnti;3;Acquisto di beni e servizi;2;Acquisto di servizi;5;Utenze e canoni;6;Gas;13/02/2018
132;1;0;862,62;862,62;E.ON Energia S.p.a.;Z7113FE6B2;ACCONTO Fatt.n. 40001355  del 01/02/2018 Fornitura gas naturale utenza Polo Scolastico mese di dicembre 2017;13/02/2018;29701;0;64;1;Spese correnti;3;Acquisto di beni e servizi;2;Acquisto di servizi;5;Utenze e canoni;6;Gas;13/02/2018
133;1;0;889,98;889,98;E.ON Energia S.p.a.;Z711FE6B2;ACCONTO Fatt.n. 40001355  del 01/02/2018 Fornitura gas naturale utenza Polo Scolastico mese di dicembre 2017;13/02/2018;31801;0;65;1;Spese correnti;3;Acquisto di beni e servizi;2;Acquisto di servizi;5;Utenze e canoni;6;Gas;13/02/2018
134;1;0;700;700;E.ON Energia S.p.a.;Z7113FE6B2;ACCONTO Fatt.n. 40001355  del 01/02/2018 Fornitura gas naturale utenza Polo Scolastico mese di dicembre 2017;13/02/2018;28001;0;434;1;Spese correnti;3;Acquisto di beni e servizi;2;Acquisto di servizi;5;Utenze e canoni;6;Gas;13/02/2018
135;1;0;700;700;E.ON Energia S.p.a.;Z7113FE6B2;ACCONTO Fatt.n. 40001355  del 01/02/2018 Fornitura gas naturale utenza Polo Scolastico mese di dicembre 2017;13/02/2018;29701;0;435;1;Spese correnti;3;Acquisto di beni e servizi;2;Acquisto di servizi;5;Utenze e canoni;6;Gas;13/02/2018
136;1;0;400;400;E.ON Energia S.p.a.;Z7113FE6B2;ACCONTO Fatt.n. 40001355  del 01/02/2018 Fornitura gas naturale utenza Polo Scolastico mese di dicembre 2017;13/02/2018;31801;0;436;1;Spese correnti;3;Acquisto di beni e servizi;2;Acquisto di servizi;5;Utenze e canoni;6;Gas;13/02/2018
137;1;0;409,98;409,98;E.ON Energia S.p.a.; ;SALDO Fatt.n. 40001355  del 01/02/2018 Fornitura gas naturale utenza Polo Scolastico mese di dicembre 2017;13/02/2018;28001;0;61;1;Spese correnti;3;Acquisto di beni e servizi;2;Acquisto di servizi;5;Utenze e canoni;6;Gas;13/02/2018
138;1;0;563,54;563,54;E.ON Energia S.p.a.;Z7113FE6B2;SALDO Fatt.n. 40001380  del 01/02/2018 Fornitura gas metano utenza Villa Venier periodo dal 15 novembre 2017 al 31 dicembre 2017;13/02/2018;1312;0;66;1;Spese correnti;3;Acquisto di beni e servizi;2;Acquisto di servizi;5;Utenze e canoni;6;Gas;13/02/2018
139;1;0;131,41;131,41;E.ON Energia S.p.a.;Z7113FE6B2;ACCONTO Fatt.n. 40001356  del 01/02/2018 Fornitura gas naturale utenza immobile Piazzetta Martiri mese di dicembre 2017;13/02/2018;1405;0;61;1;Spese correnti;3;Acquisto di beni e servizi;2;Acquisto di servizi;5;Utenze e canoni;6;Gas;13/02/2018
140;1;0;1.300,00;1.300,00;E.ON Energia S.p.a.;Z7113FE6B2;ACCONTO Fatt.n. 40001356  del 01/02/2018 Fornitura gas naturale utenza immobile Piazzetta Martiri mese di dicembre 2017;13/02/2018;1405;0;432;1;Spese correnti;3;Acquisto di beni e servizi;2;Acquisto di servizi;5;Utenze e canoni;6;Gas;13/02/2018
141;1;0;818,17;818,17;E.ON Energia S.p.a.; ;SALDO Fatt.n. 40001356  del 01/02/2018 Fornitura gas naturale utenza immobile Piazzetta Martiri mese di dicembre 2017;13/02/2018;1405;0;59;1;Spese correnti;3;Acquisto di beni e servizi;2;Acquisto di servizi;5;Utenze e canoni;6;Gas;13/02/2018
142;1;0;30,59;643,18;I.C.A. IMPOSTE COMUNALI AFFINI;Z291C60108;SALDO Fatt.n. FE0003446  del 29/12/2017 Aggio per servizio liquidazione, accertamento e riscossione imposta comunale sulla pubblicita e diritti sulle pubbliche affissioni quarto trimestre 2017;15/02/2018;1480;0;326;1;Spese correnti;3;Acquisto di beni e servizi;2;Acquisto di servizi;3;Aggi di riscossione;999;Altri aggi di riscossione n.a.c.;15/02/2018
142;2;0;612,59;643,18;I.C.A. IMPOSTE COMUNALI AFFINI;Z291C60108;SALDO Fatt.n. FE0003445  del 29/12/2017 Aggio per servizio liquidazione, accertamento e riscossione imposta comunale sulla pubblicita e diritti sulle pubbliche affissioni quarto trimestre 2017;15/02/2018;1480;0;326;1;Spese correnti;3;Acquisto di beni e servizi;2;Acquisto di servizi;3;Aggi di riscossione;999;Altri aggi di riscossione n.a.c.;15/02/2018
143;1;0;90,48;90,48;Vodafone Italia S.p.A.;ZD11381BD3;ACCONTO Fatt.n. AI01403292  del 24/01/2018 Spese per telefonia mobile periodo dal 25.11.2017 al 19.01.2018;16/02/2018;4751;0;73;1;Spese correnti;3;Acquisto di beni e servizi;2;Acquisto di servizi;5;Utenze e canoni;2;Telefonia mobile;16/02/2018
144;1;0;97,36;97,36;Vodafone Italia S.p.A.;Z941E11750;ACCONTO Fatt.n. AI01403292  del 24/01/2018 Spese per telefonia fissa utenza Villa Venier per il periodo dal 25.11.2017 al 19.01.2018;16/02/2018;1312;0;139;1;Spese correnti;3;Acquisto di beni e servizi;2;Acquisto di servizi;5;Utenze e canoni;1;Telefonia fissa;16/02/2018
145;1;0;85,16;85,16;Vodafone Italia S.p.A.;Z941E11750;ACCONTO Fatt.n. AI01403292  del 24/01/2018 Spese telefoniche utenza biblioteca per il periodo dal 25.11.2017 al 19.01.2018;16/02/2018;3761;0;144;1;Spese correnti;3;Acquisto di beni e servizi;2;Acquisto di servizi;5;Utenze e canoni;1;Telefonia fissa;16/02/2018
146;1;0;472,37;472,37;Vodafone Italia S.p.A.;Z941E11750;ACCONTO Fatt.n. AI01403292  del 24/01/2018 Spese telefoniche utenze Sede Municipale per il periodo dal 25.11.2017 al 19.01.2018;16/02/2018;4751;0;143;1;Spese correnti;3;Acquisto di beni e servizi;2;Acquisto di servizi;5;Utenze e canoni;1;Telefonia fissa;16/02/2018
147;1;0;139,08;139,08;Vodafone Italia S.p.A.;Z941E11750;ACCONTO Fatt.n. AI01403292  del 24/01/2018 Spese telefoniche utenza Scuola dell'Infanzia per il periodo dal 25.11.2017 al 19.01.2018;16/02/2018;28001;0;140;1;Spese correnti;3;Acquisto di beni e servizi;2;Acquisto di servizi;5;Utenze e canoni;1;Telefonia fissa;16/02/2018
148;1;0;139,08;139,08;Vodafone Italia S.p.A.;Z941E11750;ACCONTO Fatt.n. AI01403292  del 24/01/2018 Spese telefoniche utenza Scuola Primaria per il periodo dal 25.11.2017 al 19.01.2018;16/02/2018;29701;0;141;1;Spese correnti;3;Acquisto di beni e servizi;2;Acquisto di servizi;5;Utenze e canoni;1;Telefonia fissa;16/02/2018
149;1;0;139,08;139,08;Vodafone Italia S.p.A.;Z941E11750;SALDO Fatt.n. AI01403292  del 24/01/2018 Spese telefoniche utenza Scuola Secondaria di primo grado per il periodo dal 25.11.2017 al 19.01.2018;16/02/2018;31801;0;142;1;Spese correnti;3;Acquisto di beni e servizi;2;Acquisto di servizi;5;Utenze e canoni;1;Telefonia fissa;16/02/2018
162;1;0;80,26;80,26;DIPENDENTI COMUNALI DIVERSI; ;Rimborso quota spese mensa dipendenti 4 trimestre 2017;20/02/2018;9375;0;328;1;Spese correnti;3;Acquisto di beni e servizi;2;Acquisto di servizi;99;Altri servizi;999;Altri servizi diversi n.a.c.;20/02/2018
169;1;0;2.700,00;2.700,00;Ass. ANTEAS; ;Contributo onnicomprensivo per servizio di trasporto anziani o persone deboli presso strutture sanitari  anno 2018 - a.l. ac n. 41 del 15.02.2018;21/02/2018;6955;0;44;1;Spese correnti;4;Trasferimenti correnti;4;Trasferimenti correnti a Istituzioni Sociali Private;1;Trasferimenti correnti a Istituzioni Sociali Private;1;Trasferimenti correnti a Istituzioni Sociali Private;21/02/2018
170;1;0;8.000,00;8.000,00;MARTINI LUCIANO SRL;Z70188CBBO;SALDO Fatt.n. 3/EL  del 12/02/2018 Saldo lavori manutensione ordinaria strade dicembre 2017;21/02/2018;1302;0;405;1;Spese correnti;3;Acquisto di beni e servizi;2;Acquisto di servizi;9;Manutenzione ordinaria e riparazioni;8;Manutenzione ordinaria e riparazioni di beni immobili;21/02/2018
171;1;0;1.074,44;1.074,44;MARTINI LUCIANO SRL;Z70188CBBO;SALDO Fatt.n. 2/EL  del 12/02/2018 Acconto su lavori stradali mese di dicembre 2017;21/02/2018;1302;0;356;1;Spese correnti;3;Acquisto di beni e servizi;2;Acquisto di servizi;9;Manutenzione ordinaria e riparazioni;8;Manutenzione ordinaria e riparazioni di beni immobili;21/02/2018
172;1;0;1.000,00;1.000,00;COMUNE DI TEOLO; ;Quota contributo per il Distretto Protezione Civile anno  2017 - a.l. UTC N. 30 DEL 14.02.2018;21/02/2018;2666;0;419;1;Spese correnti;4;Trasferimenti correnti;1;Trasferimenti correnti a Amministrazioni Pubbliche;2;Trasferimenti correnti a Amministrazioni Locali;3;Trasferimenti correnti a Comuni;21/02/2018
173;1;0;1.692,00;1.692,00;"PARROCCHIA ""NATIVITA' BEATA VERGINE"""; ;Contributo agli Istituti Religiosi e Chiese relativo al 8 per cento degli oneri di urbanizzazione secondari anno 2017 L.R. n. 44/1987 - a.l. utc n. 29 del 14.02.2018;21/02/2018;11000;0;424;2;Spese in conto capitale;3;Contributi agli investimenti;4;Contributi agli investimenti a Istituzioni Sociali Private;1;Contributi agli investimenti a Istituzioni Sociali Private;1;Contributi agli investimenti a Istituzioni Sociali Private;21/02/2018
174;1;0;120;120;PROVINCIA DI PADOVA; ;Servizio di attivazione caselle PEC per Consiglieri Comunali - A.L. AC N. 39 DEL 14.02.2018;21/02/2018;4755;0;43;1;Spese correnti;3;Acquisto di beni e servizi;2;Acquisto di servizi;99;Altri servizi;999;Altri servizi diversi n.a.c.;21/02/2018
175;1;0;42,9;42,9;COMUNE DI BARBARANO VICENTINO; ;Rimborso per fornitura libri di testo a.s. 2016/2017 per alunni residenti in Vo ma frequentanti la scuola primaria di Barbarano Vicentino - a.l. ac n. 37 del 12.02.2018;21/02/2018;2950;0;46;1;Spese correnti;3;Acquisto di beni e servizi;1;Acquisto di beni;2;Altri beni di consumo;999;Altri beni e materiali di consumo n.a.c.;21/02/2018
176;1;0;1.338,34;1.338,34;MATTIUSSI ECOLOGIA S.p.a.;ZD02188C01;SALDO Fatt.n. 9 EL  del 31/01/2018 Fornitura contenitori per rifiuti;21/02/2018;5787;0;425;1;Spese correnti;3;Acquisto di beni e servizi;1;Acquisto di beni;2;Altri beni di consumo;999;Altri beni e materiali di consumo n.a.c.;21/02/2018
177;1;0;242,52;242,52;PILO SNC;Z641F2729B;SALDO Fatt.n. 1/E  del 31/01/2018 Servizio sostitutivo mensa ai dipendenti mese di gennaio 2018;21/02/2018;9375;0;206;1;Spese correnti;3;Acquisto di beni e servizi;2;Acquisto di servizi;99;Altri servizi;999;Altri servizi diversi n.a.c.;21/02/2018
178;1;0;1.200,00;1.200,00;ISTITUTO COMPRENSIVO LOZZO ATESTINO; ;Contributo a favore dell'Istituto Comprensivo di Lozzo Atestino per acquisto materiale per pulizie A.S. 2017/2018 - A.L. AC N. 34 DEL 07.02.2018;21/02/2018;3425;0;331;1;Spese correnti;4;Trasferimenti correnti;1;Trasferimenti correnti a Amministrazioni Pubbliche;1;Trasferimenti correnti a Amministrazioni Centrali;2;Trasferimenti correnti a Ministero dell'Istruzione - Istituzioni scolastiche;21/02/2018
179;1;0;65,88;175,68;GRAFICHE E. GASPARI S.R.L.;ZD421CB0DF;SALDO Fatt.n. 01701  del 31/01/2018 Fornitura materiale elettorale per allestimento seggi;21/02/2018;1030;0;34;1;Spese correnti;3;Acquisto di beni e servizi;1;Acquisto di beni;2;Altri beni di consumo;10;Beni per consultazioni elettorali;21/02/2018
179;2;0;109,8;175,68;GRAFICHE E. GASPARI S.R.L.;ZD421CB0DF;SALDO Fatt.n. 01519  del 31/01/2018 Eleweb politiche fino a tre sezioni;21/02/2018;1030;0;34;1;Spese correnti;3;Acquisto di beni e servizi;1;Acquisto di beni;2;Altri beni di consumo;10;Beni per consultazioni elettorali;21/02/2018
180;1;0;300;300;CARRARO PAOLA; ;Compenso per l'espletamento delle funzioni di Nucleo di Valutazione anno 2017 - A.L. AC N. 35 DEL 08.02.2018;21/02/2018;460;0;107;1;Spese correnti;3;Acquisto di beni e servizi;2;Acquisto di servizi;11;Prestazioni professionali e specialistiche;999;Altre prestazioni professionali e specialistiche n.a.c.;21/02/2018
183;1;0;1.045,00;1.045,00;ZEFIRO SRL;Z3D1A45638;ACCONTO Fatt.n. 1/PA  del 31/01/2018 Servizio di pulizia edifici comunali MESE di GENNAIO 2018;21/02/2018;475;0;393;1;Spese correnti;3;Acquisto di beni e servizi;2;Acquisto di servizi;99;Altri servizi;999;Altri servizi diversi n.a.c.;21/02/2018
184;1;0;262,18;262,18;ZEFIRO SRL;Z3D1A45638;ACCONTO Fatt.n. 1/PA  del 31/01/2018 Servizio di pulizia edifici comunali MESE di GENNAIO 2018;21/02/2018;2973;0;394;1;Spese correnti;3;Acquisto di beni e servizi;2;Acquisto di servizi;99;Altri servizi;999;Altri servizi diversi n.a.c.;21/02/2018
185;1;0;294,75;294,75;ZEFIRO SRL;Z3D1A45638;ACCONTO Fatt.n. 1/PA  del 31/01/2018 Servizio di pulizia edifici comunali MESE di GENNAIO 2018;21/02/2018;37601;0;395;1;Spese correnti;3;Acquisto di beni e servizi;2;Acquisto di servizi;99;Altri servizi;999;Altri servizi diversi n.a.c.;21/02/2018
186;1;0;174,85;174,85;ZEFIRO SRL;Z3D1A45638;SALDO Fatt.n. 1/PA  del 31/01/2018 Servizio di pulizia edifici comunali MESE di GENNAIO 2018;21/02/2018;1400;0;396;1;Spese correnti;3;Acquisto di beni e servizi;2;Acquisto di servizi;9;Manutenzione ordinaria e riparazioni;8;Manutenzione ordinaria e riparazioni di beni immobili;21/02/2018
187;1;0;7.165,59;7.165,59;S.E.S.A. SPA;Z11182D6F2;SALDO Fatt.n. 2000089  del 31/01/2018 Smaltimento rifiuti mese di gennaio 2018;21/02/2018;5780;0;41;1;Spese correnti;3;Acquisto di beni e servizi;2;Acquisto di servizi;15;Contratti di servizio pubblico;4;Contratti di servizio per la raccolta rifiuti;21/02/2018
188;1;0;4.160,20;4.160,20;New Generation s.r.l.;Z822146B9B;SALDO Fatt.n. 7A  del 15/02/2018 Manutenzione straordinaria barchessa  Villa Venier;21/02/2018;10430;0;401;2;Spese in conto capitale;2;Investimenti fissi lordi e acquisto di terreni;1;Beni materiali;10;Beni immobili di valore culturale, storico ed artistico;999;Beni immobili di valore culturale, storico ed artistico n.a.c.;21/02/2018
189;1;0;1.250,50;1.250,50;Melillo Servizi Ambientali e Cimiteriali s.r.l.;ZE418C2969;SALDO Fatt.n. 2078  del 31/01/2018 Servizio di sepolture cimiteriali 4 trimestre 2017;21/02/2018;5190;0;85;1;Spese correnti;3;Acquisto di beni e servizi;2;Acquisto di servizi;99;Altri servizi;999;Altri servizi diversi n.a.c.;21/02/2018
190;1;0;489,9;489,9;Sodexo Italia Spa;64630250F4;SALDO Fatt.n. 7400002057  del 31/01/2018 Servizio di sorveglianza refettorio gennaio 2018;21/02/2018;3406;0;68;1;Spese correnti;3;Acquisto di beni e servizi;2;Acquisto di servizi;15;Contratti di servizio pubblico;6;Contratti di servizio per le mense scolastiche;21/02/2018
191;1;0;750;750;"CASA DI RIPOSO ""A. SIMIONATI"""; ;SALDO Fatt.n. 8/E  del 31/01/2018 Quota retta casa di riposo mese di gennaio 2018;21/02/2018;6875;0;15;1;Spese correnti;3;Acquisto di beni e servizi;2;Acquisto di servizi;99;Altri servizi;999;Altri servizi diversi n.a.c.;21/02/2018
192;1;0;4.169,00;4.169,00;COOPERATIVA SOCIALE SERVIZI ASSOCIATI;7079166895;SALDO Fatt.n. D-28  del 31/01/2018 Servizio di trasoporto alunni mese di GENNAIO 2018;21/02/2018;3413;0;279;1;Spese correnti;3;Acquisto di beni e servizi;2;Acquisto di servizi;15;Contratti di servizio pubblico;2;Contratti di servizio di trasporto scolastico;21/02/2018
193;1;0;2.370,24;2.370,24;Sodexo Italia Spa;64630250F4;SALDO Fatt.n. 7400002055  del 31/01/2018 PASTI ALUNNI SCUOLA MATERNA GENNAIO 2018;21/02/2018;3404;0;65;1;Spese correnti;3;Acquisto di beni e servizi;2;Acquisto di servizi;15;Contratti di servizio pubblico;6;Contratti di servizio per le mense scolastiche;21/02/2018
194;1;0;2.497,73;2.497,73;Sodexo Italia Spa;64630250F4;SALDO Fatt.n. 7400002056  del 31/01/2018 PASTI ALUNNI SCUOLE ELEMENTARI GENNAIO 2018;21/02/2018;3406;0;66;1;Spese correnti;3;Acquisto di beni e servizi;2;Acquisto di servizi;15;Contratti di servizio pubblico;6;Contratti di servizio per le mense scolastiche;21/02/2018
195;1;0;99,49;5.353,26;Illumia S.p.A.;Z0E14167CF;SALDO Fatt.n. 611-PE  del 22/01/2018 Fornitura energia elettrica utenza illuminazione pubblica (POD IT001E32268714) mese di dicembre 2017  -  provv. 33;26/02/2018;7420;0;380;1;Spese correnti;3;Acquisto di beni e servizi;2;Acquisto di servizi;5;Utenze e canoni;4;Energia elettrica;26/02/2018
195;2;0;112,68;5.353,26;Illumia S.p.A.;Z0E14167CF;SALDO Fatt.n. 568-PE  del 22/01/2018 Fornitura energia elettrica utenza torretta Piazzetta Spolverato mese di dicembre 2017  -  provv. 29;26/02/2018;7420;0;380;1;Spese correnti;3;Acquisto di beni e servizi;2;Acquisto di servizi;5;Utenze e canoni;4;Energia elettrica;26/02/2018
195;3;0;5.141,09;5.353,26;Illumia S.p.A.;Z0E14167CF;SALDO Fatt.n. 610-PE  del 22/01/2018 Fornitura energia elettrica utenze illuminazione pubblica periodo novembre / dicembre 2017  -  provv. 32;26/02/2018;7420;0;380;1;Spese correnti;3;Acquisto di beni e servizi;2;Acquisto di servizi;5;Utenze e canoni;4;Energia elettrica;26/02/2018
196;1;0;511,47;511,47;Illumia S.p.A.;Z0E14167CF;ACCONTO Fatt.n. 563-PE  del 22/01/2018 Fornitura energia elettrica utenza Polo Scolastico mese di dicembre 2017  -  provv. 25;26/02/2018;28001;0;372;1;Spese correnti;3;Acquisto di beni e servizi;2;Acquisto di servizi;5;Utenze e canoni;4;Energia elettrica;26/02/2018
197;1;0;511,47;511,47;Illumia S.p.A.;Z0E14167CF;ACCONTO Fatt.n. 563-PE  del 22/01/2018 Fornitura energia elettrica utenza Polo Scolastico mese di dicembre 2017  -  provv. 25;26/02/2018;29701;0;373;1;Spese correnti;3;Acquisto di beni e servizi;2;Acquisto di servizi;5;Utenze e canoni;4;Energia elettrica;26/02/2018
198;1;0;511,47;511,47;Illumia S.p.A.;Z0E14167CF;SALDO Fatt.n. 563-PE  del 22/01/2018 Fornitura energia elettrica utenza Polo Scolastico mese di dicembre 2017  -  provv. 25;26/02/2018;31801;0;374;1;Spese correnti;3;Acquisto di beni e servizi;2;Acquisto di servizi;5;Utenze e canoni;4;Energia elettrica;26/02/2018
199;1;0;823,49;823,49;Illumia S.p.A.;Z0E14167CF;SALDO Fatt.n. 565-PE  del 22/01/2018 Fornitura energia elettrica utenza Villa Venier mese di dicembre 2017  -  provv. 27;26/02/2018;1312;0;378;1;Spese correnti;3;Acquisto di beni e servizi;2;Acquisto di servizi;5;Utenze e canoni;4;Energia elettrica;26/02/2018
200;1;0;121,59;592,77;Illumia S.p.A.;Z0E14167CF;SALDO Fatt.n. 566-PE  del 22/01/2018 Fornitura energia elettrica utenza Impianto Sportivo Zovon mese di dicembre 2017  -  provv. 30;26/02/2018;64981;0;376;1;Spese correnti;3;Acquisto di beni e servizi;2;Acquisto di servizi;5;Utenze e canoni;4;Energia elettrica;26/02/2018
200;2;0;471,18;592,77;Illumia S.p.A.;Z0E14167CF;SALDO Fatt.n. 612-PE  del 22/01/2018 Fornitura energia elettrica utenza Impianto Sportivo Via Marconi mese di dicembre 2017  -  provv.  31;26/02/2018;64981;0;376;1;Spese correnti;3;Acquisto di beni e servizi;2;Acquisto di servizi;5;Utenze e canoni;4;Energia elettrica;26/02/2018
201;1;0;533,1;533,1;Illumia S.p.A.;Z0E14167CF;SALDO Fatt.n. 567-PE  del 22/01/2018 Fornitura energia elettrica utenza Sede Municipale mese di dicembre 2017  -  provv. 28;26/02/2018;4751;0;371;1;Spese correnti;3;Acquisto di beni e servizi;2;Acquisto di servizi;5;Utenze e canoni;4;Energia elettrica;26/02/2018
202;1;0;365,89;365,89;Illumia S.p.A.;Z0E14167CF;SALDO Fatt.n. 564-PE  del 22/01/2018 Fornitura energia elettrica utenza Immobile Piazzetta Martiri mese di dicembre 2017  -  provv.  26;26/02/2018;1405;0;379;1;Spese correnti;3;Acquisto di beni e servizi;2;Acquisto di servizi;5;Utenze e canoni;4;Energia elettrica;26/02/2018
203;1;0;2,03;13,31;TELECOM ITALIA SPA;ZE31381BC6;SALDO Fatt.n. 8E01221082  del 06/12/2017 Spese telefoniche utenze comunali;26/02/2018;4751;0;67;1;Spese correnti;3;Acquisto di beni e servizi;2;Acquisto di servizi;5;Utenze e canoni;1;Telefonia fissa;26/02/2018
203;2;0;3,15;13,31;TELECOM ITALIA SPA;ZE31381BC6;SALDO Fatt.n. 8E01220181  del 06/12/2017 Spese telefoniche utenze comunali;26/02/2018;4751;0;67;1;Spese correnti;3;Acquisto di beni e servizi;2;Acquisto di servizi;5;Utenze e canoni;1;Telefonia fissa;26/02/2018
203;3;0;3,15;13,31;TELECOM ITALIA SPA;ZE31381BC6;SALDO Fatt.n. 8E01213990  del 06/12/2017 Spese telefoniche utenze comunali;26/02/2018;4751;0;67;1;Spese correnti;3;Acquisto di beni e servizi;2;Acquisto di servizi;5;Utenze e canoni;1;Telefonia fissa;26/02/2018
203;4;0;4,98;13,31;TELECOM ITALIA SPA;ZE31381BC6;SALDO Fatt.n. 8E01217975  del 06/12/2017 Spese telefoniche utenze comunali;26/02/2018;4751;0;67;1;Spese correnti;3;Acquisto di beni e servizi;2;Acquisto di servizi;5;Utenze e canoni;1;Telefonia fissa;26/02/2018
205;1;0;1.018,00;1.018,00;TESORERIA PROVINCIALE DELLO STATO - RISCOSSIONE TRIBUTI; ;Liquidazione IVA a debito anno imposta 2017 - A.L. AC N. 51 DEL 27.02.2018;06/03/2018;9240;0;74;1;Spese correnti;10;Altre spese correnti;3;Versamenti IVA a debito;1;Versamenti IVA a debito per le gestioni commerciali;1;Versamenti IVA a debito per le gestioni commerciali;06/03/2018
206;1;0;887,38;887,38;TREVISAN VANESSA; ;Indennita di carica Sindaco febbraio 2018;07/03/2018;10;0;24;1;Spese correnti;3;Acquisto di beni e servizi;2;Acquisto di servizi;1;Organi e incarichi istituzionali dell'amministrazione;1;Organi istituzionali dell'amministrazione - Indennità;07/03/2018
207;1;0;177,48;177,48;CALAON SIMONE; ;Indennita di carica Vice-Sindaco febbraio 2018;07/03/2018;10;0;25;1;Spese correnti;3;Acquisto di beni e servizi;2;Acquisto di servizi;1;Organi e incarichi istituzionali dell'amministrazione;1;Organi istituzionali dell'amministrazione - Indennità;07/03/2018
208;1;0;133,11;133,11;LAZZARETTO ROBERTA; ;Indennita di carica Assessore febbraio 2018;07/03/2018;10;0;27;1;Spese correnti;3;Acquisto di beni e servizi;2;Acquisto di servizi;1;Organi e incarichi istituzionali dell'amministrazione;1;Organi istituzionali dell'amministrazione - Indennità;07/03/2018
209;1;0;266,21;266,21;ZAVATTIERO AGOSTINO; ;Indennita di carica Assessore febbraio 2018;07/03/2018;10;0;28;1;Spese correnti;3;Acquisto di beni e servizi;2;Acquisto di servizi;1;Organi e incarichi istituzionali dell'amministrazione;1;Organi istituzionali dell'amministrazione - Indennità;07/03/2018
210;1;0;266,21;266,21;SANTIMARIA ANDREA; ;Indennita di carica Assessore febbraio 2018;07/03/2018;10;0;26;1;Spese correnti;3;Acquisto di beni e servizi;2;Acquisto di servizi;1;Organi e incarichi istituzionali dell'amministrazione;1;Organi istituzionali dell'amministrazione - Indennità;07/03/2018
213;1;0;75,92;75,92;LAZZARETTO ROBERTA; ;Rimborso per spese di viaggio assessore Lazzaretto mese di febbraio 2018 - A.L. AC N. 55 DEL 06.03.2018;07/03/2018;230;0;33;1;Spese correnti;3;Acquisto di beni e servizi;2;Acquisto di servizi;1;Organi e incarichi istituzionali dell'amministrazione;2;Organi istituzionali dell'amministrazione - Rimborsi;07/03/2018
214;1;0;303,78;303,78;MyO srl;ZF42282D32;SALDO Fatt.n. 2040/180006088  del 28/02/2018 Fornitura n. 100 risme di carta da fotocopie A4;07/03/2018;4753;0;73;1;Spese correnti;3;Acquisto di beni e servizi;1;Acquisto di beni;2;Altri beni di consumo;1;Carta, cancelleria e stampati;07/03/2018
215;1;0;1.275,75;1.275,75;CODESS SOCIALE;684143311D;ACCONTO Fatt.n. 1042/PA  del 19/02/2018 PRESTAZIONI SOCIO SANITARIE-SERVIZIO DI ASSISTENZA SOCIALE E DOMICILIARE gennaio 2018;07/03/2018;6980;0;435;1;Spese correnti;3;Acquisto di beni e servizi;2;Acquisto di servizi;15;Contratti di servizio pubblico;9;Contratti di servizio di assistenza sociale domiciliare;07/03/2018
216;1;0;2.992,50;2.992,50;CODESS SOCIALE;684143311D;SALDO Fatt.n. 1042/PA  del 19/02/2018 PRESTAZIONI SOCIO SANITARIE-SERVIZIO DI ASSISTENZA SOCIALE E DOMICILIARE gennaio 2018;07/03/2018;6990;0;436;1;Spese correnti;3;Acquisto di beni e servizi;2;Acquisto di servizi;15;Contratti di servizio pubblico;9;Contratti di servizio di assistenza sociale domiciliare;07/03/2018
217;1;0;1.535,63;3.402,01;CODESS SOCIALE;684143311D;ACCONTO Fatt.n. 1035/PA  del 19/02/2018 PRESTAZIONI SOCIO SANITARIE-SERVIZIO DI ASSISTENZA SOCIALE E DOMICILIARE dicembre 2017;07/03/2018;6980;0;435;1;Spese correnti;3;Acquisto di beni e servizi;2;Acquisto di servizi;15;Contratti di servizio pubblico;9;Contratti di servizio di assistenza sociale domiciliare;07/03/2018
217;2;0;1.866,38;3.402,01;CODESS SOCIALE;684143311D;ACCONTO Fatt.n. 908/PA  del 12/02/2018 PRESTAZIONI SOCIO SANITARIE-SERVIZIO DI ASSISTENZA SOCIALE E DOMICILIARE NOVEMBRE 2017;07/03/2018;6980;0;435;1;Spese correnti;3;Acquisto di beni e servizi;2;Acquisto di servizi;15;Contratti di servizio pubblico;9;Contratti di servizio di assistenza sociale domiciliare;07/03/2018
218;1;0;1.409,67;4.382,22;CODESS SOCIALE;684143311D;ACCONTO Fatt.n. 1035/PA  del 19/02/2018 PRESTAZIONI SOCIO SANITARIE-SERVIZIO DI ASSISTENZA SOCIALE E DOMICILIARE dicembre 2017;07/03/2018;6990;0;436;1;Spese correnti;3;Acquisto di beni e servizi;2;Acquisto di servizi;15;Contratti di servizio pubblico;9;Contratti di servizio di assistenza sociale domiciliare;07/03/2018
218;2;0;2.972,55;4.382,22;CODESS SOCIALE;684143311D;SALDO Fatt.n. 908/PA  del 12/02/2018 PRESTAZIONI SOCIO SANITARIE-SERVIZIO DI ASSISTENZA SOCIALE E DOMICILIARE NOVEMBRE 2017;07/03/2018;6990;0;436;1;Spese correnti;3;Acquisto di beni e servizi;2;Acquisto di servizi;15;Contratti di servizio pubblico;9;Contratti di servizio di assistenza sociale domiciliare;07/03/2018
219;1;0;1.123,98;1.123,98;CODESS SOCIALE;684143311D;SALDO Fatt.n. 1035/PA  del 19/02/2018 PRESTAZIONI SOCIO SANITARIE-SERVIZIO DI ASSISTENZA SOCIALE E DOMICILIARE dicembre 2017;07/03/2018;6990;0;383;1;Spese correnti;3;Acquisto di beni e servizi;2;Acquisto di servizi;15;Contratti di servizio pubblico;9;Contratti di servizio di assistenza sociale domiciliare;07/03/2018
220;1;0;2.731,58;2.731,58;GRAFICHE E. GASPARI S.R.L.;Z8E223BAD5;SALDO Fatt.n. 03323  del 27/02/2018 Fornitura 12 cabine elettorali con mensola, tendina e  faretto e n. 3 tabelloni;07/03/2018;1300;0;69;1;Spese correnti;3;Acquisto di beni e servizi;1;Acquisto di beni;2;Altri beni di consumo;999;Altri beni e materiali di consumo n.a.c.;07/03/2018
221;1;0;357;357;BOGONI ALFONSO & C. S.A.S.;Z9E1D16AO2;SALDO Fatt.n. V0000001FE  del 31/01/2018 Fornitura carburante mese di gennaio 2018;07/03/2018;570;0;39;1;Spese correnti;3;Acquisto di beni e servizi;1;Acquisto di beni;2;Altri beni di consumo;2;Carburanti, combustibili e lubrificanti;07/03/2018
222;1;0;133,21;133,21;MAGAZZINI AMBROSI S.A.S. DI AMBROSI FABIO E TIZIANA;ZC91E16A38;SALDO Fatt.n. 2  del 27/02/2018 Fornitura materiale vario a personale tecnico manutentivo febbraio 2018;07/03/2018;1300;0;38;1;Spese correnti;3;Acquisto di beni e servizi;1;Acquisto di beni;2;Altri beni di consumo;999;Altri beni e materiali di consumo n.a.c.;07/03/2018
223;1;0;500;500;L.EU.DI.CA. - Associazione Lega Europea per la Difesa;ZA00A5481D;Servizio ricovero animali randagi recuperati nel territorio comunale anno 2016 - A.L. AC N. 38 DEL 12.02.2018;07/03/2018;5037;0;411;1;Spese correnti;3;Acquisto di beni e servizi;2;Acquisto di servizi;15;Contratti di servizio pubblico;11;Contratti di servizio per la lotta al randagismo;07/03/2018
224;1;0;2.928,00;2.928,00;GESCOP SRL;Z502020B91;SALDO Fatt.n. 09/2018  del 19/02/2018 SERVIZIO DI RICLASSIFICAZIONE E RIVALUTAZIONE INVENTARIO PATRIMONIALE CON MIGRAZIONE DATI IN SOFTWARE DI GESTIONE;07/03/2018;510;0;312;1;Spese correnti;3;Acquisto di beni e servizi;2;Acquisto di servizi;99;Altri servizi;999;Altri servizi diversi n.a.c.;07/03/2018
225;1;0;1.110,20;2.220,40;STUDIO LEGALE DOMENICHELLI E ASSOCIATI;ZEB1FA528F;SALDO Fatt.n. 12/2018/EL  del 02/03/2018 Compensi per la pratica MARTINI FEDERICO e IMMOBILIARE IL COLLE SRL - Costituzione al TAR Veneto, rg. 823/17-II sez., determinazione 54 del 14.08.17 - CIG: ZEB1FA528F (ns.rif.: 12435);07/03/2018;760;0;266;1;Spese correnti;3;Acquisto di beni e servizi;2;Acquisto di servizi;11;Prestazioni professionali e specialistiche;6;Patrocinio legale;07/03/2018
225;2;0;1.110,20;2.220,40;STUDIO LEGALE DOMENICHELLI E ASSOCIATI;ZEB1FA528F;SALDO Fatt.n. 11/2018/EL  del 02/03/2018 Compensi per la pratica MARTINI SILVESTRO COSTRUZIONI STRADALI - Costituzione al TAR Veneto, r.g. 847/17-II sez., determinazione 54 del 14.08.17 - CIG: ZEB1FA528F (ns.rif.: 12434);07/03/2018;760;0;266;1;Spese correnti;3;Acquisto di beni e servizi;2;Acquisto di servizi;11;Prestazioni professionali e specialistiche;6;Patrocinio legale;07/03/2018
226;1;0;15.290,00;15.290,00;TONIOLO S.R.L.;ZF3218BE9E;SALDO Fatt.n. FATTPA 2_18  del 12/02/2018 Lavori di rivestimento in sasso rio Gazzolina;07/03/2018;7335;0;429;1;Spese correnti;3;Acquisto di beni e servizi;2;Acquisto di servizi;9;Manutenzione ordinaria e riparazioni;8;Manutenzione ordinaria e riparazioni di beni immobili;07/03/2018
228;1;0;7.777,40;31.821,36;Melillo Servizi Ambientali e Cimiteriali s.r.l.;Z4B20D6163;SALDO Fatt.n. 2080  del 31/01/2018 Estumulazioni cimitero di Vo' svolte nel mese di gennaio 2018;07/03/2018;5190;0;370;1;Spese correnti;3;Acquisto di beni e servizi;2;Acquisto di servizi;99;Altri servizi;999;Altri servizi diversi n.a.c.;07/03/2018
228;2;0;24.043,96;31.821,36;Melillo Servizi Ambientali e Cimiteriali s.r.l.;Z4B20D6163;SALDO Fatt.n. 2079  del 31/01/2018 Esumazioni straordinarie mesi di novembre e dicembre 2017 cimiteri di Zovon e Boccon;07/03/2018;5190;0;370;1;Spese correnti;3;Acquisto di beni e servizi;2;Acquisto di servizi;99;Altri servizi;999;Altri servizi diversi n.a.c.;07/03/2018
229;1;0;6.710,00;6.710,00;Melillo Servizi Ambientali e Cimiteriali s.r.l.;ZE418C2969;SALDO Fatt.n. 2087  del 21/02/2018 Estumulazioni cimiteri di Vo' svolte nel mese di gennaio 2018;07/03/2018;5190;0;442;1;Spese correnti;3;Acquisto di beni e servizi;2;Acquisto di servizi;99;Altri servizi;999;Altri servizi diversi n.a.c.;07/03/2018
230;1;0;2.071,00;2.071,00;Melillo Servizi Ambientali e Cimiteriali s.r.l.;ZE418C2969;SALDO Fatt.n. 2088  del 21/02/2018 Estumulazioni cimiteri di Vo' svolte in gennaio 2018;07/03/2018;5190;0;85;1;Spese correnti;3;Acquisto di beni e servizi;2;Acquisto di servizi;99;Altri servizi;999;Altri servizi diversi n.a.c.;07/03/2018
232;1;0;145;912;AMBROSI LAURA; ;Onorario scrutatore del seggio n. 1 per Elezioni Politiche del 04 marzo 2018;07/03/2018;1040;0;90;1;Spese correnti;3;Acquisto di beni e servizi;2;Acquisto di servizi;99;Altri servizi;4;Altre spese per consultazioni elettorali dell'ente;07/03/2018
232;2;0;145;912;BRESSAN EMANUELA; ;Onorario scrutatore del seggio n. 1 per Elezioni Politiche del 04 marzo 2018;07/03/2018;1040;0;90;1;Spese correnti;3;Acquisto di beni e servizi;2;Acquisto di servizi;99;Altri servizi;4;Altre spese per consultazioni elettorali dell'ente;07/03/2018
232;3;0;187;912;CASSINERI FABRIZIO; ;Onorario al presidente del seggio n. 1 per Elezioni Politiche del 04 marzo 2018;07/03/2018;1040;0;90;1;Spese correnti;3;Acquisto di beni e servizi;2;Acquisto di servizi;99;Altri servizi;4;Altre spese per consultazioni elettorali dell'ente;07/03/2018
232;4;0;145;912;MION MONICA; ;Onorario scrutatore del seggio n. 1 per Elezioni Politiche del 04 marzo 2018;07/03/2018;1040;0;90;1;Spese correnti;3;Acquisto di beni e servizi;2;Acquisto di servizi;99;Altri servizi;4;Altre spese per consultazioni elettorali dell'ente;07/03/2018
232;5;0;145;912;SINIGAGLIA ANGELA; ;Onorario al segretario del seggio n. 1 per Elezioni Politiche del 04 marzo 2018;07/03/2018;1040;0;90;1;Spese correnti;3;Acquisto di beni e servizi;2;Acquisto di servizi;99;Altri servizi;4;Altre spese per consultazioni elettorali dell'ente;07/03/2018
232;6;0;145;912;TONIOLO LUCA; ;Onorario scrutatore del seggio n. 1 per Elezioni Politiche del 04 marzo 2018;07/03/2018;1040;0;90;1;Spese correnti;3;Acquisto di beni e servizi;2;Acquisto di servizi;99;Altri servizi;4;Altre spese per consultazioni elettorali dell'ente;07/03/2018
233;1;0;145;912;BRESSAN MICHELA; ;Onorario scrutatore del seggio n. 2 per Elezioni Politiche del 04 marzo 2018;07/03/2018;1040;0;90;1;Spese correnti;3;Acquisto di beni e servizi;2;Acquisto di servizi;99;Altri servizi;4;Altre spese per consultazioni elettorali dell'ente;07/03/2018
233;2;0;187;912;BUSATO ROBERTO; ;Onorario al presidente del seggio n. 2  per Elezioni Politiche del 04 marzo 2018;07/03/2018;1040;0;90;1;Spese correnti;3;Acquisto di beni e servizi;2;Acquisto di servizi;99;Altri servizi;4;Altre spese per consultazioni elettorali dell'ente;07/03/2018
233;3;0;145;912;CALAON RICCARDO; ;Onorario scrutatore del seggio n. 2 per Elezioni Politiche del 04 marzo 2018;07/03/2018;1040;0;90;1;Spese correnti;3;Acquisto di beni e servizi;2;Acquisto di servizi;99;Altri servizi;4;Altre spese per consultazioni elettorali dell'ente;07/03/2018
233;4;0;145;912;GHIOTTO VALERIA; ;Onorario scrutatore del seggio n. 2 per Elezioni Politiche del 04 marzo 2018;07/03/2018;1040;0;90;1;Spese correnti;3;Acquisto di beni e servizi;2;Acquisto di servizi;99;Altri servizi;4;Altre spese per consultazioni elettorali dell'ente;07/03/2018
233;5;0;145;912;LEGNARO GIACOMO; ;Onorario scrutatore del seggio n. 2 per Elezioni Politiche del 04 marzo 2018;07/03/2018;1040;0;90;1;Spese correnti;3;Acquisto di beni e servizi;2;Acquisto di servizi;99;Altri servizi;4;Altre spese per consultazioni elettorali dell'ente;07/03/2018
233;6;0;145;912;POLITO ERIKA; ;Onorario al segretario del seggio n. 2  per Elezioni Politiche del 04 marzo 2018;07/03/2018;1040;0;90;1;Spese correnti;3;Acquisto di beni e servizi;2;Acquisto di servizi;99;Altri servizi;4;Altre spese per consultazioni elettorali dell'ente;07/03/2018
234;1;0;145;912;CASSINERI GIACOMO; ;Onorario scrutatore del seggio elettorale n. 3 per Elezioni Politiche del 04 marzo 2018;07/03/2018;1040;0;90;1;Spese correnti;3;Acquisto di beni e servizi;2;Acquisto di servizi;99;Altri servizi;4;Altre spese per consultazioni elettorali dell'ente;07/03/2018
234;2;0;187;912;MALESANI GIULIO; ;Onorario al presidente del seggio elettorale n. 3 per Elezioni Politiche del 04 marzo 2018;07/03/2018;1040;0;90;1;Spese correnti;3;Acquisto di beni e servizi;2;Acquisto di servizi;99;Altri servizi;4;Altre spese per consultazioni elettorali dell'ente;07/03/2018
234;3;0;145;912;MANDRUZZATO ILARIA; ;Onorario scrutatore del seggio elettorale n. 3 per Elezioni Politiche del 04 marzo 2018;07/03/2018;1040;0;90;1;Spese correnti;3;Acquisto di beni e servizi;2;Acquisto di servizi;99;Altri servizi;4;Altre spese per consultazioni elettorali dell'ente;07/03/2018
234;4;0;145;912;MASIERO SARA; ;Onorario scrutatore del seggio elettorale n. 3 per Elezioni Politiche del 04 marzo 2018;07/03/2018;1040;0;90;1;Spese correnti;3;Acquisto di beni e servizi;2;Acquisto di servizi;99;Altri servizi;4;Altre spese per consultazioni elettorali dell'ente;07/03/2018
234;5;0;145;912;PRIMOLAN FEDERICA; ;Onorario al segretario del seggio elettorale n. 3 per Elezioni Politiche del 04 marzo 2018;07/03/2018;1040;0;90;1;Spese correnti;3;Acquisto di beni e servizi;2;Acquisto di servizi;99;Altri servizi;4;Altre spese per consultazioni elettorali dell'ente;07/03/2018
234;6;0;145;912;VEZZU' ALESSANDRA; ;Onorario scrutatore del seggio elettorale n. 3 per Elezioni Politiche del 04 marzo 2018;07/03/2018;1040;0;90;1;Spese correnti;3;Acquisto di beni e servizi;2;Acquisto di servizi;99;Altri servizi;4;Altre spese per consultazioni elettorali dell'ente;07/03/2018
235;1;0;65;65;ECONOMO COMUNALE; ;RIFUSIONE BUONO ECONOMATO N. 5 - a.l. A.C. 54 del 06.03.2018;07/03/2018;30;0;5;1;Spese correnti;3;Acquisto di beni e servizi;1;Acquisto di beni;2;Altri beni di consumo;9;Beni per attività di rappresentanza;07/03/2018
236;1;0;8;8;ECONOMO COMUNALE; ;RIFUSIONE BUONI ECONOMATO N. 6 - A.L. AC n. 54 del 16.03.2018;07/03/2018;230;0;6;1;Spese correnti;3;Acquisto di beni e servizi;2;Acquisto di servizi;1;Organi e incarichi istituzionali dell'amministrazione;2;Organi istituzionali dell'amministrazione - Rimborsi;07/03/2018
237;1;0;141,75;141,75;ECONOMO COMUNALE; ;Rifusione buoni economato n. 3 4 7 8 9 10 11 13 - A.L. AC n. 54 del 06.03.2018;07/03/2018;4754;0;1;1;Spese correnti;3;Acquisto di beni e servizi;1;Acquisto di beni;2;Altri beni di consumo;999;Altri beni e materiali di consumo n.a.c.;07/03/2018
239;1;0;65;65;ECONOMO COMUNALE; ;Rifusione buoni economato n. 2 12 14 15p - A.L. AC N. 54 DEL 06.03.2018;07/03/2018;1305;0;2;1;Spese correnti;3;Acquisto di beni e servizi;1;Acquisto di beni;2;Altri beni di consumo;999;Altri beni e materiali di consumo n.a.c.;07/03/2018
240;1;0;66,3;66,3;ECONOMO COMUNALE; ;Rifusione buoni economato n. 15p - A.L. AC N. 54 DEL 06.03.2018;07/03/2018;1305;0;79;1;Spese correnti;3;Acquisto di beni e servizi;1;Acquisto di beni;2;Altri beni di consumo;999;Altri beni e materiali di consumo n.a.c.;07/03/2018
241;1;0;13.323,94;13.323,94;DE VIZIA TRANSFER S.P.A.;6848933E4B;SALDO Fatt.n. V3-30212  del 28/02/2018 Servizio di raccolta e trasporto RSU mese di febbraio 2018;14/03/2018;5780;0;18;1;Spese correnti;3;Acquisto di beni e servizi;2;Acquisto di servizi;15;Contratti di servizio pubblico;4;Contratti di servizio per la raccolta rifiuti;14/03/2018
242;1;0;2.450,51;2.450,51;Sodexo Italia Spa;64630250F4;SALDO Fatt.n. 7400007384  del 28/02/2018 Fornitura pasti ad alunni scuola materna mese di febbraio 2018;14/03/2018;3404;0;65;1;Spese correnti;3;Acquisto di beni e servizi;2;Acquisto di servizi;15;Contratti di servizio pubblico;6;Contratti di servizio per le mense scolastiche;14/03/2018
243;1;0;2.204,99;2.204,99;Sodexo Italia Spa;64630250F4;SALDO Fatt.n. 7400007385  del 28/02/2018 Fornitura pasti alunni scuole elementari mese di febbraio 2018;14/03/2018;3406;0;66;1;Spese correnti;3;Acquisto di beni e servizi;2;Acquisto di servizi;15;Contratti di servizio pubblico;6;Contratti di servizio per le mense scolastiche;14/03/2018
244;1;0;489,9;489,9;Sodexo Italia Spa;64630250F4;SALDO Fatt.n. 7400007386  del 28/02/2018 Servizio di sorveglianza refettorio mese di febbraio 2018;14/03/2018;3406;0;68;1;Spese correnti;3;Acquisto di beni e servizi;2;Acquisto di servizi;15;Contratti di servizio pubblico;6;Contratti di servizio per le mense scolastiche;14/03/2018
245;1;0;750;750;"CASA DI RIPOSO ""A. SIMIONATI"""; ;SALDO Fatt.n. 22/E  del 28/02/2018 Quota retta ricovero R.R. mese di febbraio 2018;14/03/2018;6875;0;15;1;Spese correnti;3;Acquisto di beni e servizi;2;Acquisto di servizi;99;Altri servizi;999;Altri servizi diversi n.a.c.;14/03/2018
246;1;0;296,92;296,92;POSTE ITALIANE SPA;Z961438A4F;ACCONTO Fatt.n. 8718061328  del 23/02/2018 Fattura Elettronica relativa all'Identificativo Rendiconto 2095748329;14/03/2018;4800;0;404;1;Spese correnti;3;Acquisto di beni e servizi;2;Acquisto di servizi;16;Servizi amministrativi;2;Spese postali;14/03/2018
247;1;0;148,74;148,74;POSTE ITALIANE SPA;Z961438A4F;SALDO Fatt.n. 8718061328  del 23/02/2018 Fattura Elettronica relativa all'Identificativo Rendiconto 2095748329;14/03/2018;4800;0;42;1;Spese correnti;3;Acquisto di beni e servizi;2;Acquisto di servizi;16;Servizi amministrativi;2;Spese postali;14/03/2018
248;1;0;4.169,00;4.169,00;COOPERATIVA SOCIALE SERVIZI ASSOCIATI;7079166895;SALDO Fatt.n. D-77  del 28/02/2018 Servizio di trasporto scolastico mese di febbraio 2018;14/03/2018;3413;0;279;1;Spese correnti;3;Acquisto di beni e servizi;2;Acquisto di servizi;15;Contratti di servizio pubblico;2;Contratti di servizio di trasporto scolastico;14/03/2018
249;1;0;573,4;573,4;TERMOIDRAULICA BELLUCCO ROBERTINO;Z671DEC1D8;SALDO Fatt.n. 000001-2018-T  del 03/01/2018 Fornitura scaldabagno per polo scolastico cucina;14/03/2018;1300;0;104;1;Spese correnti;3;Acquisto di beni e servizi;1;Acquisto di beni;2;Altri beni di consumo;999;Altri beni e materiali di consumo n.a.c.;14/03/2018
250;1;0;29,28;29,28;C.C.I.A.A. Vicenza;ZFA22A22DA;SALDO Fatt.n. 2018/FESP-11  del 09/03/2018 Accesso on line prezziario Opere Edili;14/03/2018;790;0;93;1;Spese correnti;3;Acquisto di beni e servizi;2;Acquisto di servizi;99;Altri servizi;999;Altri servizi diversi n.a.c.;14/03/2018
251;1;0;1.045,00;1.045,00;ZEFIRO SRL;Z3D1A45638;ACCONTO Fatt.n. 4/PA  del 28/02/2018 Servizio di pulizia edifici comunali MESE di FEBBRAIO 2018;14/03/2018;475;0;393;1;Spese correnti;3;Acquisto di beni e servizi;2;Acquisto di servizi;99;Altri servizi;999;Altri servizi diversi n.a.c.;14/03/2018
252;1;0;262,18;262,18;ZEFIRO SRL;Z3D1A45638;ACCONTO Fatt.n. 4/PA  del 28/02/2018 Servizio di pulizia edifici comunali MESE di FEBBRAIO 2018;14/03/2018;2973;0;394;1;Spese correnti;3;Acquisto di beni e servizi;2;Acquisto di servizi;99;Altri servizi;999;Altri servizi diversi n.a.c.;14/03/2018
253;1;0;294,75;294,75;ZEFIRO SRL;Z3D1A45638;ACCONTO Fatt.n. 4/PA  del 28/02/2018 Servizio di pulizia edifici comunali MESE di FEBBRAIO 2018;14/03/2018;37601;0;395;1;Spese correnti;3;Acquisto di beni e servizi;2;Acquisto di servizi;99;Altri servizi;999;Altri servizi diversi n.a.c.;14/03/2018
254;1;0;174,85;174,85;ZEFIRO SRL;Z3D1A45638;SALDO Fatt.n. 4/PA  del 28/02/2018 Servizio di pulizia edifici comunali MESE di FEBBRAIO 2018;14/03/2018;1400;0;396;1;Spese correnti;3;Acquisto di beni e servizi;2;Acquisto di servizi;9;Manutenzione ordinaria e riparazioni;8;Manutenzione ordinaria e riparazioni di beni immobili;14/03/2018
255;1;0;270,55;1.457,86;E.ON Energia S.p.a.;Z7113FE6B2;SALDO Fatt.n. 40001600  del 01/03/2018 Fornitura gas naturale utenza Sede Municipale (matricola contatore 30155066) mese di gennaio 2018;16/03/2018;4751;0;60;1;Spese correnti;3;Acquisto di beni e servizi;2;Acquisto di servizi;5;Utenze e canoni;6;Gas;16/03/2018
255;2;0;1.187,31;1.457,86;E.ON Energia S.p.a.;Z7113FE6B2;SALDO Fatt.n. 40002121  del 01/03/2018 Fornitura gas naturale utenza Sede Municipale (matricola contatore 1545006563) mese di gennaio 2018;16/03/2018;4751;0;60;1;Spese correnti;3;Acquisto di beni e servizi;2;Acquisto di servizi;5;Utenze e canoni;6;Gas;16/03/2018
256;1;0;366,24;366,24;E.ON Energia S.p.a.;Z7113FE6B2;SALDO Fatt.n. 40002147  del 01/03/2018 Fornitura gas naturale utenza Villa Venier mese di gennaio 2018;16/03/2018;1312;0;64;1;Spese correnti;3;Acquisto di beni e servizi;2;Acquisto di servizi;5;Utenze e canoni;6;Gas;16/03/2018
257;1;0;1.476,20;1.476,20;E.ON Energia S.p.a.;Z7113FE6B2;ACCONTO Fatt.n. 40002122  del 01/03/2018 Fornitura gas naturale utenza Polo Scolastico mese di gennaio 2018;16/03/2018;28001;0;61;1;Spese correnti;3;Acquisto di beni e servizi;2;Acquisto di servizi;5;Utenze e canoni;6;Gas;16/03/2018
258;1;0;1.476,20;1.476,20;E.ON Energia S.p.a.; ;ACCONTO Fatt.n. 40002122  del 01/03/2018 Fornitura gas naturale utenza Polo Scolastico mese di gennaio 2018;16/03/2018;29701;0;62;1;Spese correnti;3;Acquisto di beni e servizi;2;Acquisto di servizi;5;Utenze e canoni;6;Gas;16/03/2018
259;1;0;1.442,49;1.442,49;E.ON Energia S.p.a.; ;SALDO Fatt.n. 40002122  del 01/03/2018 Fornitura gas naturale utenza Polo Scolastico mese di gennaio 2018;16/03/2018;31801;0;63;1;Spese correnti;3;Acquisto di beni e servizi;2;Acquisto di servizi;5;Utenze e canoni;6;Gas;16/03/2018
260;1;0;2.025,44;2.025,44;E.ON Energia S.p.a.;Z7113FE6B2;SALDO Fatt.n. 40002123  del 01/03/2018 Fornitura gas naturale utenza Immobile Piazzetta Martiri mese di gennaio 2018;16/03/2018;1405;0;59;1;Spese correnti;3;Acquisto di beni e servizi;2;Acquisto di servizi;5;Utenze e canoni;6;Gas;16/03/2018
286;1;0;247;247;SEPEL SAS;Z2022CC968;"SALDO Fatt.n. 2/1068  del 15/03/2018 Abbonamento a ""LO STATO CIVILE ITALIANO"" 2018";23/03/2018;550;0;104;1;Spese correnti;3;Acquisto di beni e servizi;1;Acquisto di beni;1;Giornali, riviste e pubblicazioni;1;Giornali e riviste;23/03/2018
287;1;0;732;732;ACCATRE S.r.l.;ZC820773FA;SALDO Fatt.n. 1/180234  del 30/01/2018 Attivita di affiancamento economico patrimoniale anno 2018;23/03/2018;555;0;359;1;Spese correnti;3;Acquisto di beni e servizi;2;Acquisto di servizi;19;Servizi informatici e di telecomunicazioni;1;Gestione e manutenzione applicazioni;23/03/2018
288;1;0;125,66;125,66;Acquaviva srl Unipersonale;Z902265712;SALDO Fatt.n. 1800083/FE  del 26/02/2018 Manutenzione ordinaria refrigeratore anno 2018;23/03/2018;9375;0;72;1;Spese correnti;3;Acquisto di beni e servizi;2;Acquisto di servizi;99;Altri servizi;999;Altri servizi diversi n.a.c.;23/03/2018
289;1;0;7.564,00;7.564,00;HALLEY VENETO SRL;Z211F3CB52;SALDO Fatt.n. 1/180280  del 16/03/2018 Canone manutenzione software applicativo 2018;23/03/2018;555;0;239;1;Spese correnti;3;Acquisto di beni e servizi;2;Acquisto di servizi;19;Servizi informatici e di telecomunicazioni;1;Gestione e manutenzione applicazioni;23/03/2018
290;1;0;164,7;164,7;IMQ SPA;Z0722734FD;SALDO Fatt.n. 118007111  del 14/03/2018 Collaudo/Verifica impianti elevatori edificio biblioteca comunale;23/03/2018;1400;0;97;1;Spese correnti;3;Acquisto di beni e servizi;2;Acquisto di servizi;9;Manutenzione ordinaria e riparazioni;8;Manutenzione ordinaria e riparazioni di beni immobili;23/03/2018
291;1;0;164,7;164,7;IMQ SPA;Z0722734FD;SALDO Fatt.n. 118007110  del 14/03/2018 Collaudo/Verifica impianti elevatori scuola media Pilonato;23/03/2018;3185;0;99;1;Spese correnti;3;Acquisto di beni e servizi;2;Acquisto di servizi;99;Altri servizi;999;Altri servizi diversi n.a.c.;23/03/2018
292;1;0;1.799,50;1.799,50;GRAFICHE E. GASPARI S.R.L.;Z14223BB49;SALDO Fatt.n. 05258  del 15/03/2018 Fornitura n. 9 pabelloni elettorali con piantana;23/03/2018;1030;0;70;1;Spese correnti;3;Acquisto di beni e servizi;1;Acquisto di beni;2;Altri beni di consumo;10;Beni per consultazioni elettorali;23/03/2018
293;1;0;7.295,60;7.295,60;STUDIO LEGALE DOMENICHELLI E ASSOCIATI;ZAA22B3B46;SALDO Fatt.n. 15/2018/EL  del 15/03/2018 Acconto per la pratica COSTRUZIONI STRADALI MARTINI SILVESTRO srl + aa - Costituzione al Consiglio di Stato c/sentenza n. 1181/17 (R.G. 1119/18) (Ns. rif. 12644);23/03/2018;760;0;94;1;Spese correnti;3;Acquisto di beni e servizi;2;Acquisto di servizi;11;Prestazioni professionali e specialistiche;6;Patrocinio legale;23/03/2018
295;1;0;9.453,57;9.453,57;Illumia S.p.A.;Z0E14167CF;ACCONTO Fatt.n. 1120-PE  del 21/02/2018 Fornitura energia elettrica utenze illuminazione pubblica conguaglio mese di dicembre 2017  -  provv. 40;26/03/2018;7420;0;380;1;Spese correnti;3;Acquisto di beni e servizi;2;Acquisto di servizi;5;Utenze e canoni;4;Energia elettrica;26/03/2018
296;1;0;93;1.285,63;Illumia S.p.A.;Z0E14167CF;SALDO Fatt.n. 1377-PE  del 21/02/2018 Fornitura energia elettrica utenza ill. pubblica (Cod. POD IT001E040199192) mese di gennaio 2018  -  provv. 50;26/03/2018;7420;0;89;1;Spese correnti;3;Acquisto di beni e servizi;2;Acquisto di servizi;5;Utenze e canoni;4;Energia elettrica;26/03/2018
296;2;0;141,18;1.285,63;Illumia S.p.A.;Z0E14167CF;SALDO Fatt.n. 1383-PE  del 21/02/2018 Fornitura energia elettrica utenza torretta Piazzetta Spolverato  mese di gennaio 2018  -  provv. 57;26/03/2018;7420;0;89;1;Spese correnti;3;Acquisto di beni e servizi;2;Acquisto di servizi;5;Utenze e canoni;4;Energia elettrica;26/03/2018
296;3;0;145,14;1.285,63;Illumia S.p.A.;Z0E14167CF;SALDO Fatt.n. 1121-PE  del 21/02/2018 Fornitura energia elettrica utenza ill. pubblica (Cod. POD IT001E32268714) mese di gennaio 2018  -  provv. 41;26/03/2018;7420;0;89;1;Spese correnti;3;Acquisto di beni e servizi;2;Acquisto di servizi;5;Utenze e canoni;4;Energia elettrica;26/03/2018
296;4;0;194,79;1.285,63;Illumia S.p.A.;Z0E14167CF;SALDO Fatt.n. 1375-PE  del 21/02/2018 Fornitura energia elettrica utenza lottizzazione in Via Vo Di Sotto mese di gennaio 2018  -  provv. 49;26/03/2018;7420;0;89;1;Spese correnti;3;Acquisto di beni e servizi;2;Acquisto di servizi;5;Utenze e canoni;4;Energia elettrica;26/03/2018
296;5;0;711,52;1.285,63;Illumia S.p.A.;Z0E14167CF;SALDO Fatt.n. 1120-PE  del 21/02/2018 Fornitura energia elettrica utenze illuminazione pubblica conguaglio mese di dicembre 2017 e mese di gennaio 2018  -  provv. 40;26/03/2018;7420;0;89;1;Spese correnti;3;Acquisto di beni e servizi;2;Acquisto di servizi;5;Utenze e canoni;4;Energia elettrica;26/03/2018
297;1;0;199,84;658,18;Illumia S.p.A.;Z0E14167CF;SALDO Fatt.n. 1380-PE  del 21/02/2018 Fornitura energia elettrica utenza Impianto Sportivo Zovon mese di gennaio 2018  -  provv. 55;26/03/2018;64981;0;85;1;Spese correnti;3;Acquisto di beni e servizi;2;Acquisto di servizi;5;Utenze e canoni;4;Energia elettrica;26/03/2018
297;2;0;458,34;658,18;Illumia S.p.A.;Z0E14167CF;SALDO Fatt.n. 1123-PE  del 21/02/2018 Fornitura energia elettrica utenza Impianto Sportivo Via Marconi mese di gennaio 2018  -  provv. 43;26/03/2018;64981;0;85;1;Spese correnti;3;Acquisto di beni e servizi;2;Acquisto di servizi;5;Utenze e canoni;4;Energia elettrica;26/03/2018
298;1;0;95,23;95,23;Illumia S.p.A.;Z0E14167CF;SALDO Fatt.n. 1122-PE  del 21/02/2018 Fornitura energia elettrica utenza ex Scuola Zovon periodo dicembre 2017 / gennaio 2018  -  provv. 42;26/03/2018;1330;0;84;1;Spese correnti;3;Acquisto di beni e servizi;2;Acquisto di servizi;5;Utenze e canoni;4;Energia elettrica;26/03/2018
299;1;0;67,1;398,8;Illumia S.p.A.;Z0E14167CF;SALDO Fatt.n. 1373-PE  del 21/02/2018 Fornitura energia elettrica utenza Villa Venier (Cod. POD IT001E04020269) mese di dicembre 2017  -  provv. 48;26/03/2018;1312;0;378;1;Spese correnti;3;Acquisto di beni e servizi;2;Acquisto di servizi;5;Utenze e canoni;4;Energia elettrica;26/03/2018
299;2;0;72,85;398,8;Illumia S.p.A.;Z0E14167CF;SALDO Fatt.n. 1124-PE  del 21/02/2018 Fornitura energia elettrica utenza utenza Villa Venier (Cod. POD IT001E35511792) mese di dicembre 2017  -  provv. 44;26/03/2018;1312;0;378;1;Spese correnti;3;Acquisto di beni e servizi;2;Acquisto di servizi;5;Utenze e canoni;4;Energia elettrica;26/03/2018
299;3;0;72,85;398,8;Illumia S.p.A.;Z0E14167CF;SALDO Fatt.n. 1125-PE  del 21/02/2018 Fornitura energia elettrica utenza Villa Venier (Cod. POD IT001E3551782) mese di dicembre 2017  -  provv. 45;26/03/2018;1312;0;378;1;Spese correnti;3;Acquisto di beni e servizi;2;Acquisto di servizi;5;Utenze e canoni;4;Energia elettrica;26/03/2018
299;4;0;93;398,8;Illumia S.p.A.;Z0E14167CF;SALDO Fatt.n. 1376-PE  del 21/02/2018 Fornitura energia elettrica utenza Villa Venier (Cod. POD IT001E04020277) mese di dicembre 2017  -  provv. 51;26/03/2018;1312;0;378;1;Spese correnti;3;Acquisto di beni e servizi;2;Acquisto di servizi;5;Utenze e canoni;4;Energia elettrica;26/03/2018
299;5;0;93;398,8;Illumia S.p.A.;Z0E14167CF;SALDO Fatt.n. 1382-PE  del 21/02/2018 Fornitura energia elettrica utenza Villa Venier (Cod. POD IT001E04020273) mese di dicembre 2017  -  provv. 56;26/03/2018;1312;0;378;1;Spese correnti;3;Acquisto di beni e servizi;2;Acquisto di servizi;5;Utenze e canoni;4;Energia elettrica;26/03/2018
300;1;0;242,96;242,96;Illumia S.p.A.;Z0E14167CF;SALDO Fatt.n. 1126-PE  del 21/02/2018 Fornitura energia elettrica utenza Magazzino mese di dicembre 2017  -  provv. 46;26/03/2018;1450;0;377;1;Spese correnti;3;Acquisto di beni e servizi;2;Acquisto di servizi;5;Utenze e canoni;4;Energia elettrica;26/03/2018
301;1;0;460,73;460,73;Illumia S.p.A.;Z0E14167CF;ACCONTO Fatt.n. 1374-PE  del 21/02/2018 Fornitura energia elettrica utenza Polo Scolastico mese di gennaio 2018  -  provv. 47;26/03/2018;28001;0;81;1;Spese correnti;3;Acquisto di beni e servizi;2;Acquisto di servizi;5;Utenze e canoni;4;Energia elettrica;26/03/2018
302;1;0;460,73;460,73;Illumia S.p.A.;Z0E14167CF;ACCONTO Fatt.n. 1374-PE  del 21/02/2018 Fornitura energia elettrica utenza Polo Scolastico mese di gennaio 2018  -  provv. 47;26/03/2018;29701;0;82;1;Spese correnti;3;Acquisto di beni e servizi;2;Acquisto di servizi;5;Utenze e canoni;4;Energia elettrica;26/03/2018
303;1;0;460,74;460,74;Illumia S.p.A.;Z0E14167CF;SALDO Fatt.n. 1374-PE  del 21/02/2018 Fornitura energia elettrica utenza Polo Scolastico mese di gennaio 2018  -  provv. 47;26/03/2018;31801;0;83;1;Spese correnti;3;Acquisto di beni e servizi;2;Acquisto di servizi;5;Utenze e canoni;4;Energia elettrica;26/03/2018
304;1;0;361,35;361,35;Illumia S.p.A.;Z0E14167CF;SALDO Fatt.n. 1378-PE  del 21/02/2018 Fornitura energia elettrica utenza immobile Piazzetta Martiri mese di gennaio 2018  -  provv. 52;26/03/2018;1405;0;88;1;Spese correnti;3;Acquisto di beni e servizi;2;Acquisto di servizi;5;Utenze e canoni;4;Energia elettrica;26/03/2018
305;1;0;423,41;423,41;Illumia S.p.A.;Z0E14167CF;SALDO Fatt.n. 1379-PE  del 21/02/2018 Fornitura energia elettrica utenza Villa Venier (Cod. POD IT001E34674161) mese di gennaio 2018  -  provv. 53;26/03/2018;1312;0;87;1;Spese correnti;3;Acquisto di beni e servizi;2;Acquisto di servizi;5;Utenze e canoni;4;Energia elettrica;26/03/2018
306;1;0;460,62;460,62;Illumia S.p.A.;Z0E14167CF;SALDO Fatt.n. 1381-PE  del 21/02/2018 Fornitura energia elettrica utenza Sede Municipale mese di gennaio 2018  -  provv. 54;26/03/2018;4751;0;80;1;Spese correnti;3;Acquisto di beni e servizi;2;Acquisto di servizi;5;Utenze e canoni;4;Energia elettrica;26/03/2018
307;1;0;90,75;90,75;Vodafone Italia S.p.A.;ZD11381BD3;Spese per gestione telefonia mobile anno 2018 - ricarica borsellino 348886 - Atto Liq. Area Servizi Tecnici n. 52 del 29.03.2018;29/03/2018;4751;0;119;1;Spese correnti;3;Acquisto di beni e servizi;2;Acquisto di servizi;5;Utenze e canoni;2;Telefonia mobile;29/03/2018
